{"text_format":"1","workbook":"xlsx","n_sheets":3,"sheets":["01入出力","02入力例","03リスト"],"not_rendered":{"charts":0,"images":0,"macros":0,"external_links":0,"defined_names":5,"comments":0,"pivot_tables":0},"unopened":[],"bounds":{"document_bytes":16777216,"sheet_cells":100000,"rows_first":2000,"rows_last":500,"rows_between":2000,"halvings":0,"cell_chars":16384,"cell_head_chars":4096},"cells_cut":0,"cells_raw":0,"read":"whole","date_system":"1900"}

{"sheet":"01入出力","index":0,"n_rows":291,"n_cols":61,"rows_kept":291,"cut":false,"hidden":false,"merged":[[1,1,1,25],[2,1,2,8],[2,9,2,11],[2,12,2,25],[3,1,3,8],[3,9,3,11],[3,12,3,23],[3,24,3,25],[4,1,4,8],[4,9,4,11],[4,12,4,25],[6,1,6,25],[6,36,6,60],[7,1,7,8],[7,9,7,11],[7,12,7,25],[8,1,8,8],[8,9,8,11],[8,12,8,23],[8,24,8,25],[8,26,8,34],[9,1,9,8],[9,9,9,11],[9,12,9,25],[9,26,9,34],[10,1,10,8],[10,9,10,11],[10,12,10,25],[10,26,10,34],[11,1,11,8],[11,9,11,11],[11,12,11,25],[11,26,11,34],[12,1,12,8],[12,9,12,11],[12,12,12,25],[12,26,12,34],[13,1,13,8],[13,9,13,11],[13,12,13,25],[13,26,13,34],[14,1,14,8],[14,9,14,11],[14,12,14,25],[15,1,15,8],[15,9,15,11],[15,12,15,25],[16,1,16,8],[16,9,16,11],[16,12,16,25],[17,1,17,8],[17,9,17,11],[17,12,17,25],[18,1,18,8],[18,9,18,11],[18,12,18,25],[19,1,19,8],[19,9,19,11],[19,12,19,25],[20,1,20,8],[20,9,20,11],[20,12,20,25],[22,1,22,25],[23,12,23,25],[24,12,24,25],[25,1,25,8],[25,9,25,11],[25,12,25,25],[25,26,25,34],[26,1,26,8],[26,9,26,11],[26,12,26,25],[26,26,26,34],[27,1,27,8],[27,9,27,11],[27,12,27,25],[27,26,27,34],[28,1,28,8],[28,9,28,11],[28,12,28,25],[28,26,28,34],[29,1,29,8],[29,9,29,11],[29,12,29,25],[29,26,29,34],[30,1,30,8],[30,9,30,11],[30,12,30,25],[30,26,30,34],[31,1,31,8],[31,9,31,11],[31,12,31,25],[31,26,31,34],[32,1,32,8],[32,9,32,11],[32,12,32,25],[33,1,33,8],[33,9,33,11],[33,12,33,25],[34,1,34,8],[34,9,34,11],[34,12,34,25],[35,1,35,8],[35,9,35,11],[35,12,35,25],[37,1,37,34],[37,35,37,37],[37,38,37,60],[38,43,38,47],[38,48,38,60],[39,46,39,47],[39,48,39,60],[40,46,40,47],[40,48,40,60],[41,17,41,21],[41,22,41,37],[41,38,41,42],[41,43,41,60],[42,17,42,21],[42,22,42,37],[42,38,42,42],[42,43,42,60],[43,17,43,21],[43,22,43,31],[43,32,43,33],[43,34,43,35],[43,36,43,37],[43,38,43,42],[43,43,43,60],[44,17,44,21],[44,22,44,31],[44,32,44,37],[45,17,45,21],[45,22,45,37],[46,17,46,21],[46,22,46,37],[47,17,47,21],[47,22,47,31],[47,32,47,33],[47,34,47,35],[47,36,47,37],[48,17,48,21],[48,22,48,37],[49,17,49,21],[49,22,49,37],[50,17,50,21],[50,22,50,31],[50,32,50,33],[50,34,50,35],[50,36,50,37],[51,17,51,21],[51,22,51,37],[52,17,52,21],[52,22,52,37],[53,17,53,21],[53,22,53,31],[53,32,53,33],[53,34,53,35],[53,36,53,37],[54,17,54,21],[54,22,54,37],[55,17,55,21],[55,22,55,37],[56,17,56,21],[56,22,56,31],[56,32,56,33],[56,34,56,35],[56,36,56,37],[58,1,58,60],[59,1,59,60],[60,1,60,60],[61,1,61,60],[62,1,62,30],[62,31,62,44],[62,45,62,47],[62,48,62,60],[63,1,63,15],[63,16,63,30],[63,31,63,45],[63,46,63,60],[64,1,64,60],[65,1,65,11],[65,12,65,19],[65,20,65,27],[65,28,65,38],[65,39,65,46],[65,47,65,54],[66,1,66,11],[66,12,66,17],[66,18,66,19],[66,20,66,25],[66,26,66,27],[66,28,66,38],[66,39,66,44],[66,45,66,46],[66,47,66,52],[66,53,66,54],[67,1,67,2],[67,3,67,11],[67,12,67,17],[67,18,67,19],[67,20,67,25],[67,26,67,27],[67,28,67,29],[67,30,67,38],[67,39,67,44],[67,45,67,46],[67,47,67,52],[67,53,67,54],[69,1,69,60],[70,1,70,44],[71,7,71,14],[71,15,71,22],[71,29,71,36],[71,37,71,44],[72,7,72,10],[72,11,72,14],[72,15,72,18],[72,19,72,22],[72,29,72,32],[72,33,72,36],[72,37,72,40],[72,41,72,44],[72,45,72,50],[72,51,72,55],[72,56,72,60],[73,1,73,6],[73,7,73,9],[73,11,73,13],[73,15,73,17],[73,19,73,21],[73,23,73,28],[73,29,73,31],[73,33,73,35],[73,37,73,39],[73,41,73,43],[73,45,73,50],[73,51,73,53],[73,54,73,55],[73,56,73,58],[73,59,73,60],[74,1,74,6],[74,7,74,9],[74,11,74,13],[74,15,74,17],[74,19,74,21],[74,23,74,28],[74,29,74,31],[74,33,74,35],[74,37,74,39],[74,41,74,43],[74,45,74,50],[74,51,74,53],[74,54,74,55],[74,56,74,58],[74,59,74,60],[75,1,75,6],[75,7,75,9],[75,11,75,13],[75,15,75,17],[75,19,75,21],[75,23,75,28],[75,29,75,31],[75,33,75,35],[75,37,75,39],[75,41,75,43],[75,45,75,50],[75,51,75,53],[75,54,75,55],[75,56,75,58],[75,59,75,60],[76,1,76,6],[76,7,76,9],[76,11,76,13],[76,15,76,17],[76,19,76,21],[76,23,76,28],[76,29,76,31],[76,33,76,35],[76,37,76,39],[76,41,76,43],[76,45,76,50],[76,51,76,53],[76,54,76,55],[76,56,76,58],[76,59,76,60],[77,1,77,6],[77,7,77,9],[77,11,77,13],[77,15,77,17],[77,19,77,21],[77,23,77,28],[77,29,77,31],[77,33,77,35],[77,37,77,39],[77,41,77,43],[77,45,77,50],[77,51,77,53],[77,54,77,55],[77,56,77,58],[77,59,77,60],[78,1,78,6],[78,7,78,9],[78,11,78,13],[78,15,78,17],[78,19,78,21],[78,23,78,28],[78,29,78,31],[78,33,78,35],[78,37,78,39],[78,41,78,43],[78,45,78,50],[78,51,78,53],[78,54,78,55],[78,56,78,58],[78,59,78,60],[79,1,79,6],[79,7,79,9],[79,11,79,13],[79,15,79,17],[79,19,79,21],[79,23,79,28],[79,29,79,31],[79,33,79,35],[79,37,79,39],[79,41,79,43],[79,45,79,50],[79,51,79,53],[79,54,79,55],[79,56,79,58],[79,59,79,60],[80,1,80,6],[80,7,80,9],[80,11,80,13],[80,15,80,17],[80,19,80,21],[80,23,80,28],[80,29,80,31],[80,33,80,35],[80,37,80,39],[80,41,80,43],[80,45,80,50],[80,51,80,53],[80,54,80,55],[80,56,80,58],[80,59,80,60],[81,1,81,6],[81,7,81,9],[81,11,81,13],[81,15,81,17],[81,19,81,21],[81,23,81,28],[81,29,81,31],[81,33,81,35],[81,37,81,39],[81,41,81,43],[81,45,81,50],[81,51,81,53],[81,54,81,55],[81,56,81,58],[81,59,81,60],[82,1,82,6],[82,7,82,9],[82,11,82,13],[82,15,82,17],[82,19,82,21],[82,23,82,28],[82,29,82,31],[82,33,82,35],[82,37,82,39],[82,41,82,43],[82,45,82,50],[82,51,82,53],[82,54,82,55],[82,56,82,58],[82,59,82,60],[83,1,83,6],[83,7,83,9],[83,11,83,13],[83,15,83,17],[83,19,83,21],[83,23,83,28],[83,29,83,31],[83,33,83,35],[83,37,83,39],[83,41,83,43],[83,45,83,50],[83,51,83,53],[83,54,83,55],[83,56,83,58],[83,59,83,60],[84,1,84,6],[84,7,84,9],[84,11,84,13],[84,15,84,17],[84,19,84,21],[84,23,84,28],[84,29,84,31],[84,33,84,35],[84,37,84,39],[84,41,84,43],[84,45,84,50],[84,51,84,53],[84,54,84,55],[84,56,84,58],[84,59,84,60],[85,1,85,6],[85,7,85,9],[85,11,85,13],[85,15,85,17],[85,19,85,21],[85,23,85,28],[85,29,85,31],[85,33,85,35],[85,37,85,39],[85,41,85,43],[85,45,85,50],[85,51,85,53],[85,54,85,55],[85,56,85,58],[85,59,85,60],[86,1,86,6],[86,7,86,9],[86,11,86,13],[86,15,86,17],[86,19,86,21],[86,23,86,28],[86,29,86,31],[86,33,86,35],[86,37,86,39],[86,41,86,43],[86,45,86,50],[86,51,86,53],[86,54,86,55],[86,56,86,58],[86,59,86,60],[87,1,87,6],[87,7,87,9],[87,11,87,13],[87,15,87,17],[87,19,87,21],[87,23,87,28],[87,29,87,31],[87,33,87,35],[87,37,87,39],[87,41,87,43],[87,45,87,50],[87,51,87,53],[87,54,87,55],[87,56,87,58],[87,59,87,60],[88,1,88,6],[88,7,88,9],[88,11,88,13],[88,15,88,17],[88,19,88,21],[88,23,88,28],[88,29,88,31],[88,33,88,35],[88,37,88,39],[88,41,88,43],[88,45,88,50],[88,51,88,53],[88,54,88,55],[88,56,88,58],[88,59,88,60],[89,1,89,6],[89,7,89,9],[89,11,89,13],[89,15,89,17],[89,19,89,21],[89,23,89,28],[89,29,89,31],[89,33,89,35],[89,37,89,39],[89,41,89,43],[89,45,89,50],[89,51,89,53],[89,54,89,55],[89,56,89,58],[89,59,89,60],[90,1,90,6],[90,7,90,9],[90,11,90,13],[90,15,90,17],[90,19,90,21],[90,23,90,28],[90,29,90,31],[90,33,90,35],[90,37,90,39],[90,41,90,43],[90,45,90,50],[90,51,90,53],[90,54,90,55],[90,56,90,58],[90,59,90,60],[91,1,91,6],[91,7,91,9],[91,11,91,13],[91,15,91,17],[91,19,91,21],[91,23,91,28],[91,29,91,31],[91,33,91,35],[91,37,91,39],[91,41,91,43],[91,45,91,50],[91,51,91,53],[91,54,91,55],[91,56,91,58],[91,59,91,60],[92,1,92,6],[92,7,92,9],[92,11,92,13],[92,15,92,17],[92,19,92,21],[92,23,92,28],[92,29,92,31],[92,33,92,35],[92,37,92,39],[92,41,92,43],[92,45,92,50],[92,51,92,53],[92,54,92,55],[92,56,92,58],[92,59,92,60],[93,1,93,6],[93,7,93,9],[93,11,93,13],[93,15,93,17],[93,19,93,21],[93,23,93,28],[93,29,93,31],[93,33,93,35],[93,37,93,39],[93,41,93,43],[93,45,93,50],[93,51,93,53],[93,54,93,55],[93,56,93,58],[93,59,93,60],[94,1,94,6],[94,7,94,9],[94,11,94,13],[94,15,94,17],[94,19,94,21],[94,23,94,28],[94,29,94,31],[94,33,94,35],[94,37,94,39],[94,41,94,43],[94,45,94,50],[94,51,94,53],[94,54,94,55],[94,56,94,58],[94,59,94,60],[95,1,95,6],[95,7,95,9],[95,11,95,13],[95,15,95,17],[95,19,95,21],[95,23,95,28],[95,29,95,31],[95,33,95,35],[95,37,95,39],[95,41,95,43],[95,45,95,50],[95,51,95,53],[95,54,95,55],[95,56,95,58],[95,59,95,60],[96,1,96,6],[96,7,96,9],[96,11,96,13],[96,15,96,17],[96,19,96,21],[96,23,96,28],[96,29,96,31],[96,33,96,35],[96,37,96,39],[96,41,96,43],[96,45,96,50],[96,51,96,53],[96,54,96,55],[96,56,96,58],[96,59,96,60],[98,1,98,60],[99,1,99,30],[99,31,99,60],[100,5,100,12],[100,37,100,44],[100,45,100,60],[101,45,101,52],[101,53,101,60],[102,45,102,48],[102,49,102,52],[102,53,102,56],[102,57,102,60],[103,5,103,8],[103,9,103,12],[103,13,103,16],[103,17,103,21],[103,22,103,23],[103,24,103,28],[103,29,103,30],[103,31,103,36],[103,37,103,40],[103,41,103,44],[103,45,103,48],[103,49,103,52],[103,53,103,56],[103,57,103,60],[104,5,104,8],[104,9,104,12],[104,13,104,16],[104,17,104,21],[104,22,104,23],[104,24,104,28],[104,29,104,30],[104,31,104,36],[104,37,104,40],[104,41,104,44],[104,45,104,48],[104,49,104,52],[104,53,104,56],[104,57,104,60],[105,5,105,8],[105,9,105,12],[105,13,105,16],[105,17,105,21],[105,22,105,23],[105,24,105,28],[105,29,105,30],[105,31,105,36],[105,37,105,40],[105,41,105,44],[105,45,105,48],[105,49,105,52],[105,53,105,56],[105,57,105,60],[106,5,106,8],[106,9,106,12],[106,13,106,16],[106,17,106,21],[106,22,106,23],[106,24,106,28],[106,29,106,30],[106,31,106,36],[106,37,106,40],[106,41,106,44],[106,45,106,48],[106,49,106,52],[106,53,106,56],[106,57,106,60],[107,5,107,8],[107,9,107,12],[107,13,107,16],[107,17,107,21],[107,22,107,23],[107,24,107,28],[107,29,107,30],[107,31,107,36],[107,37,107,40],[107,41,107,44],[107,45,107,48],[107,49,107,52],[107,53,107,56],[107,57,107,60],[108,5,108,8],[108,9,108,12],[108,13,108,16],[108,17,108,21],[108,22,108,23],[108,24,108,28],[108,29,108,30],[108,31,108,36],[108,37,108,40],[108,41,108,44],[108,45,108,48],[108,49,108,52],[108,53,108,56],[108,57,108,60],[109,5,109,8],[109,9,109,12],[109,13,109,16],[109,17,109,21],[109,22,109,23],[109,24,109,28],[109,29,109,30],[109,31,109,36],[109,37,109,40],[109,41,109,44],[109,45,109,48],[109,49,109,52],[109,53,109,56],[109,57,109,60],[110,5,110,8],[110,9,110,12],[110,13,110,16],[110,17,110,21],[110,22,110,23],[110,24,110,28],[110,29,110,30],[110,31,110,36],[110,37,110,40],[110,41,110,44],[110,45,110,48],[110,49,110,52],[110,53,110,56],[110,57,110,60],[111,5,111,8],[111,9,111,12],[111,13,111,16],[111,17,111,21],[111,22,111,23],[111,24,111,28],[111,29,111,30],[111,31,111,36],[111,37,111,40],[111,41,111,44],[111,45,111,48],[111,49,111,52],[111,53,111,56],[111,57,111,60],[112,5,112,8],[112,9,112,12],[112,13,112,16],[112,17,112,21],[112,22,112,23],[112,24,112,28],[112,29,112,30],[112,31,112,36],[112,37,112,40],[112,41,112,44],[112,45,112,48],[112,49,112,52],[112,53,112,56],[112,57,112,60],[113,5,113,8],[113,9,113,12],[113,13,113,16],[113,17,113,21],[113,22,113,23],[113,24,113,28],[113,29,113,30],[113,31,113,36],[113,37,113,40],[113,41,113,44],[113,45,113,48],[113,49,113,52],[113,53,113,56],[113,57,113,60],[114,5,114,8],[114,9,114,12],[114,13,114,16],[114,17,114,21],[114,22,114,23],[114,24,114,28],[114,29,114,30],[114,31,114,36],[114,37,114,40],[114,41,114,44],[114,45,114,48],[114,49,114,52],[114,53,114,56],[114,57,114,60],[115,5,115,8],[115,9,115,12],[115,13,115,16],[115,17,115,21],[115,22,115,23],[115,24,115,28],[115,29,115,30],[115,31,115,36],[115,37,115,40],[115,41,115,44],[115,45,115,48],[115,49,115,52],[115,53,115,56],[115,57,115,60],[116,5,116,8],[116,9,116,12],[116,13,116,16],[116,17,116,21],[116,22,116,23],[116,24,116,28],[116,29,116,30],[116,31,116,36],[116,37,116,40],[116,41,116,44],[116,45,116,48],[116,49,116,52],[116,53,116,56],[116,57,116,60],[117,5,117,8],[117,9,117,12],[117,13,117,16],[117,17,117,21],[117,22,117,23],[117,24,117,28],[117,29,117,30],[117,31,117,36],[117,37,117,40],[117,41,117,44],[117,45,117,48],[117,49,117,52],[117,53,117,56],[117,57,117,60],[118,5,118,8],[118,9,118,12],[118,13,118,16],[118,17,118,21],[118,22,118,23],[118,24,118,28],[118,29,118,30],[118,31,118,36],[118,37,118,40],[118,41,118,44],[118,45,118,48],[118,49,118,52],[118,53,118,56],[118,57,118,60],[119,5,119,8],[119,9,119,12],[119,13,119,16],[119,17,119,21],[119,22,119,23],[119,24,119,28],[119,29,119,30],[119,31,119,36],[119,37,119,40],[119,41,119,44],[119,45,119,48],[119,49,119,52],[119,53,119,56],[119,57,119,60],[120,5,120,8],[120,9,120,12],[120,13,120,16],[120,17,120,21],[120,22,120,23],[120,24,120,28],[120,29,120,30],[120,31,120,36],[120,37,120,40],[120,41,120,44],[120,45,120,48],[120,49,120,52],[120,53,120,56],[120,57,120,60],[121,5,121,8],[121,9,121,12],[121,13,121,16],[121,17,121,21],[121,22,121,23],[121,24,121,28],[121,29,121,30],[121,31,121,36],[121,37,121,40],[121,41,121,44],[121,45,121,48],[121,49,121,52],[121,53,121,56],[121,57,121,60],[122,5,122,8],[122,9,122,12],[122,13,122,16],[122,17,122,21],[122,22,122,23],[122,24,122,28],[122,29,122,30],[122,31,122,36],[122,37,122,40],[122,41,122,44],[122,45,122,48],[122,49,122,52],[122,53,122,56],[122,57,122,60],[123,5,123,8],[123,9,123,12],[123,13,123,16],[123,17,123,21],[123,22,123,23],[123,24,123,28],[123,29,123,30],[123,31,123,36],[123,37,123,40],[123,41,123,44],[123,45,123,48],[123,49,123,52],[123,53,123,56],[123,57,123,60],[124,5,124,8],[124,9,124,12],[124,13,124,16],[124,17,124,21],[124,22,124,23],[124,24,124,28],[124,29,124,30],[124,31,124,36],[124,37,124,40],[124,41,124,44],[124,45,124,48],[124,49,124,52],[124,53,124,56],[124,57,124,60],[125,5,125,8],[125,9,125,12],[125,13,125,16],[125,17,125,21],[125,22,125,23],[125,24,125,28],[125,29,125,30],[125,31,125,36],[125,37,125,40],[125,41,125,44],[125,45,125,48],[125,49,125,52],[125,53,125,56],[125,57,125,60],[126,5,126,8],[126,9,126,12],[126,13,126,16],[126,17,126,21],[126,22,126,23],[126,24,126,28],[126,29,126,30],[126,31,126,36],[126,37,126,40],[126,41,126,44],[126,45,126,48],[126,49,126,52],[126,53,126,56],[126,57,126,60],[127,5,127,8],[127,9,127,12],[127,13,127,16],[127,17,127,21],[127,22,127,23],[127,24,127,28],[127,29,127,30],[127,31,127,36],[127,37,127,40],[127,41,127,44],[127,45,127,48],[127,49,127,52],[127,53,127,56],[127,57,127,60],[128,5,128,8],[128,9,128,12],[128,13,128,16],[128,17,128,21],[128,22,128,23],[128,24,128,28],[128,29,128,30],[128,31,128,36],[128,37,128,40],[128,41,128,44],[128,45,128,48],[128,49,128,52],[128,53,128,56],[128,57,128,60],[129,5,129,8],[129,9,129,12],[129,13,129,16],[129,17,129,21],[129,22,129,23],[129,24,129,28],[129,29,129,30],[129,31,129,36],[129,37,129,40],[129,41,129,44],[129,45,129,48],[129,49,129,52],[129,53,129,56],[129,57,129,60],[130,5,130,8],[130,9,130,12],[130,13,130,16],[130,17,130,21],[130,22,130,23],[130,24,130,28],[130,29,130,30],[130,31,130,36],[130,37,130,40],[130,41,130,44],[130,45,130,48],[130,49,130,52],[130,53,130,56],[130,57,130,60],[131,5,131,8],[131,9,131,12],[131,13,131,16],[131,17,131,21],[131,22,131,23],[131,24,131,28],[131,29,131,30],[131,31,131,36],[131,37,131,40],[131,41,131,44]],"merged_total":2629,"flags":["merged_cut"]}
[]
[null,"市町村基本情報"]
[null,"市町村名",null,null,null,null,null,null,null,"（初期）",null,null,"笠岡市"]
[null,"目標所得",null,null,null,null,null,null,null,"（初期）",null,null,4000,null,null,null,null,null,null,null,null,null,null,null,"千円"]
[null,"所得基準",null,null,null,null,null,null,null,"（初期）",null,null,"従事者１人"]
[]
[null,"認定業務",null,null,null,null,null,null,null,null,null,null,null,null,null,null,null,null,null,null,null,null,null,null,null,null,null,null,null,null,null,null,null,null,null,null,"備考"]
[null,"氏　　名\n（法人名／代表者名）",null,null,null,null,null,null,null,"（必須）",null,null,{"$f":"IF(W43=\"\",\"※申請書の氏名欄から自動で入力されます。\",IF(AR43=\"\",W43,W43&\"／\"&AR43))","v":"※申請書の氏名欄から自動で入力されます。"},null,null,null,null,null,null,null,null,null,null,null,null,null,null,null,null,null,null,null,null,null,null,null,"備考１"]
[null,"認定（変更）年度",null,null,null,null,null,null,null,"（必須）",null,null,null,null,null,null,null,null,null,null,null,null,null,null,"年度",null,"※西暦（例：2020）"]
[null,"前回認定番号",null,null,null,null,null,null,null,"（必須）",null,null,null,null,null,null,null,null,null,null,null,null,null,null,null,null,"※再認定、変更時"]
[null,"今回認定番号",null,null,null,null,null,null,null,"（必須）",null,null,null,null,null,null,null,null,null,null,null,null,null,null,null,null,"※認定後入力"]
[null,"認定（変更）日",null,null,null,null,null,null,null,"（必須）",null,null,null,null,null,null,null,null,null,null,null,null,null,null,null,null,"※認定後入力"]
[null,"認定有効期間",null,null,null,null,null,null,null,"（必須）",null,null,null,null,null,null,null,null,null,null,null,null,null,null,null,null,"※認定後入力"]
[null,"取消日",null,null,null,null,null,null,null,"（必須）",null,null,null,null,null,null,null,null,null,null,null,null,null,null,null,null,"※認定後入力"]
[null,"地区①"]
[null,"地区②"]
[null,"郵便番号"]
[null,"初回認定日"]
[null,"認定回数"]
[null,"自由設定１"]
[null,"自由設定２"]
[null,null,null,null,null,null,null,null,null,null,null,null,null,null,null,null,null,null,null,null,null,null,null,null,null,null,null,null,null,null,null,null,null,null,null,null,"備考２"]
[null,"調査報告業務"]
[null,"営農類型",null,null,null,null,null,null,null,"（必須）",null,null,{"$f":"IF(B64=\"\",\"※申請書の営農類型の現状欄から自動で入力されます。\",B64)","v":"※申請書の営農類型の現状欄から自動で入力されます。"}]
[null,null,null,null,null,null,null,null,null,null,null,null,{"$f":"IF(Q64=\"\",\"※申請書の営農類型の現状欄から自動で入力されます。\",Q64)","v":"※申請書の営農類型の現状欄から自動で入力されます。"}]
[null,"女性",null,null,null,null,null,null,null,"（必須）",null,null,null,null,null,null,null,null,null,null,null,null,null,null,null,null,"※該当であれば「○」"]
[null,"人・農地プラン",null,null,null,null,null,null,null,"（必須）",null,null,null,null,null,null,null,null,null,null,null,null,null,null,null,null,"※「○」または地区名等"]
[null,"共同申請",null,null,null,null,null,null,null,"（必須）",null,null,null,null,null,null,null,null,null,null,null,null,null,null,null,null,"※夫婦、親子、その他"]
[null,"個人から法人",null,null,null,null,null,null,null,"（必須）",null,null,null,null,null,null,null,null,null,null,null,null,null,null,null,null,"※法人で該当であれば「○」"]
[null,"法人形態",null,null,null,null,null,null,null,"（必須）",null,null,null,null,null,null,null,null,null,null,null,null,null,null,null,null,"※株式、有限、農組、合同、その他"]
[null,"組織経営体",null,null,null,null,null,null,null,"（必須）",null,null,null,null,null,null,null,null,null,null,null,null,null,null,null,null,"※法人で該当であれば「○」"]
[null,"特定農業法人",null,null,null,null,null,null,null,"（必須）",null,null,null,null,null,null,null,null,null,null,null,null,null,null,null,null,"※法人で該当であれば「○」"]
[null,"地帯区分"]
[null,"自由設定３"]
[null,"自由設定４"]
[null,"自由設定５"]
[]
[null,"農業経営改善計画認定申請書　（",null,null,null,null,null,null,null,null,null,null,null,null,null,null,null,null,null,null,null,null,null,null,null,null,null,null,null,null,null,null,null,null,null,null,null,null,"）"]
[null,null,null,null,null,null,null,null,null,null,null,null,null,null,null,null,null,null,null,null,null,null,null,null,null,null,null,null,null,null,null,null,null,null,null,null,null,null,null,null,null,null,null,"（申請日）"]
[null,"〇",null,{"$f":"IF(M3=\"\",\"\",IF(M3=\"農林水産省\",\"農林水産大臣\",IF(M3=\"岡山県\",\"岡山県知事\",M3&\"長\")))","v":"笠岡市長"},null,null,null,null,null,null,null,null,"殿",null,null,"申請者",null,"住所",null,null,null,null,null,null,null,null,null,null,null,null,null,null,null,null,null,null,null,null,null,null,null,null,null,"連絡先",null,null,"電話"]
[null,null,null,null,null,null,null,null,null,null,null,null,null,null,null,null,null,null,null,null,null,null,null,null,null,null,null,null,null,null,null,null,null,null,null,null,null,null,null,null,null,null,null,null,null,null,"携帯"]
[null,null,null,null,null,null,null,null,null,null,null,null,null,null,null,null,null,"フリガナ",null,null,null,null,null,null,null,null,null,null,null,null,null,null,null,null,null,null,null,null,"フリガナ"]
[null,null,null,null,null,null,null,null,null,null,null,null,null,null,null,null,null,"個人・法人名",null,null,null,null,null,null,null,null,null,null,null,null,null,null,null,null,null,null,null,null,"代表者氏名\n（法人のみ）"]
[null,null,null,null,null,null,null,null,null,null,null,null,null,null,null,null,null,"生年月日",null,null,null,null,null,null,null,null,null,null,null,null,null,null,"生（",null,null,null,"歳）",null,"法人番号\n（法人のみ）"]
[null,null,null,null,null,null,null,null,null,null,null,null,null,null,null,null,null,"設立年月日\n（法人のみ）",null,null,null,null,null,null,null,null,null,null,null,null,null,null,"設立"]
[null,null,null,null,null,null,null,null,null,null,null,null,null,null,null,null,null,"フリガナ"]
[null,null,null,null,null,null,null,null,null,null,null,null,null,null,null,null,null,"個人名"]
[null,null,null,null,null,null,null,null,null,null,null,null,null,null,null,null,null,"生年月日",null,null,null,null,null,null,null,null,null,null,null,null,null,null,"生（",null,null,null,"歳）"]
[null,null,null,null,null,null,null,null,null,null,null,null,null,null,null,null,null,"フリガナ"]
[null,null,null,null,null,null,null,null,null,null,null,null,null,null,null,null,null,"個人名"]
[null,null,null,null,null,null,null,null,null,null,null,null,null,null,null,null,null,"生年月日",null,null,null,null,null,null,null,null,null,null,null,null,null,null,"生（",null,null,null,"歳）"]
[null,null,null,null,null,null,null,null,null,null,null,null,null,null,null,null,null,"フリガナ"]
[null,null,null,null,null,null,null,null,null,null,null,null,null,null,null,null,null,"個人名"]
[null,null,null,null,null,null,null,null,null,null,null,null,null,null,null,null,null,"生年月日",null,null,null,null,null,null,null,null,null,null,null,null,null,null,"生（",null,null,null,"歳）"]
[null,null,null,null,null,null,null,null,null,null,null,null,null,null,null,null,null,"フリガナ"]
[null,null,null,null,null,null,null,null,null,null,null,null,null,null,null,null,null,"個人名"]
[null,null,null,null,null,null,null,null,null,null,null,null,null,null,null,null,null,"生年月日",null,null,null,null,null,null,null,null,null,null,null,null,null,null,"生（",null,null,null,"歳）"]
[]
[null,{"$f":"\"  農業経営基盤強化促進法（昭和５５年法律第６５号）第\"&IF(AJ38=\"変更\",\"１３\",\"１２\")&\"条第１項の規定に基づき、次の農業経営改善計画の認定を申請します。\"","v":"  農業経営基盤強化促進法（昭和５５年法律第６５号）第１２条第１項の規定に基づき、次の農業経営改善計画の認定を申請します。"}]
[null,"農　業　経　営　改　善　計　画"]
[null,"①　農業経営体の営農活動の現状及び目標"]
[null,"（１）営農類型"]
[null,"現　　　状",null,null,null,null,null,null,null,null,null,null,null,null,null,null,null,null,null,null,null,null,null,null,null,null,null,null,null,null,null,"目標（",null,null,null,null,null,null,null,null,null,null,null,null,null,2025,null,null,"年）"]
[]
[null,"（２）農業経営の現状及びその改善に関する目標"]
[null,null,null,null,null,null,null,null,null,null,null,null,"現状",null,null,null,null,null,null,null,{"$f":"\"目標（\"&IF(AT63=\"\",\"    \",AT63)&\"年）\"","v":"目標（2025年）"},null,null,null,null,null,null,null,null,null,null,null,null,null,null,null,null,null,null,"現状",null,null,null,null,null,null,null,{"$f":"\"目標（\"&IF(AT63=\"\",\"    \",AT63)&\"年）\"","v":"目標（2025年）"},null,null,null,null,null,null,null,"主たる\n従事者\nの人数",null,null,null,null,"人"]
[null,"年間所得",null,null,null,null,null,null,null,null,null,null,null,null,null,null,null,null,"万円",null,null,null,null,null,null,null,"万円",null,"年間労働時間",null,null,null,null,null,null,null,null,null,null,null,null,null,null,null,null,"時間",null,null,null,null,null,null,null,"時間"]
[null,null,null,"主たる従事者１人\n当たりの年間所得",null,null,null,null,null,null,null,null,null,null,null,null,null,null,"万円",null,null,null,null,null,null,null,"万円",null,null,null,"主たる従事者１人\n当たりの年間労働時間",null,null,null,null,null,null,null,null,null,null,null,null,null,null,"時間",null,null,null,null,null,null,null,"時間"]
[]
[null,"②  農業経営の規模拡大に関する現状及び目標"]
[null,"（１）生産",null,null,null,null,null,null,null,null,null,null,null,null,null,null,null,null,null,null,null,null,null,null,null,null,null,null,null,null,null,null,null,null,null,null,null,null,null,null,null,null,null,null,null,"（２）農畜産物の加工・販売その他の\n　関連・附帯事業（売上げ）"]
[null,"作目・部門名\n（耕　　種）",null,null,null,null,null,"現　　状",null,null,null,null,null,null,null,{"$f":"\"目標（\"&IF(AT63=\"\",\"    \",AT63)&\"年）\"","v":"目標（2025年）"},null,null,null,null,null,null,null,"作目・部門名\n（畜　　産）",null,null,null,null,null,"現　　状",null,null,null,null,null,null,null,{"$f":"\"目標（\"&IF(AT63=\"\",\"    \",AT63)&\"年）\"","v":"目標（2025年）"}]
[null,null,null,null,null,null,null,"作付面積",null,null,null,"生産量",null,null,null,"作付面積",null,null,null,"生産量",null,null,null,null,null,null,null,null,null,"飼養頭数\n（頭、羽）",null,null,null,"生産量",null,null,null,"飼養頭数\n（頭、羽）",null,null,null,"生産量",null,null,null,"事　業　内　容",null,null,null,null,null,"現　　状",null,null,null,null,{"$f":"\"目標（\"&IF(AT63=\"\",\"    \",AT63)&\"年）\"","v":"目標（2025年）"}]
[null,null,null,null,null,null,null,null,null,null,null,null,null,null,null,null,null,null,null,null,null,null,null,null,null,null,null,null,null,null,null,null,null,null,null,null,null,null,null,null,null,null,null,null,null,null,null,null,null,null,null,null,null,null,"万円",null,null,null,null,"万円"]
[null,null,null,null,null,null,null,null,null,null,null,null,null,null,null,null,null,null,null,null,null,null,null,null,null,null,null,null,null,null,null,null,null,null,null,null,null,null,null,null,null,null,null,null,null,null,null,null,null,null,null,null,null,null,"万円",null,null,null,null,"万円"]
[null,null,null,null,null,null,null,null,null,null,null,null,null,null,null,null,null,null,null,null,null,null,null,null,null,null,null,null,null,null,null,null,null,null,null,null,null,null,null,null,null,null,null,null,null,null,null,null,null,null,null,null,null,null,"万円",null,null,null,null,"万円"]
[null,null,null,null,null,null,null,null,null,null,null,null,null,null,null,null,null,null,null,null,null,null,null,null,null,null,null,null,null,null,null,null,null,null,null,null,null,null,null,null,null,null,null,null,null,null,null,null,null,null,null,null,null,null,"万円",null,null,null,null,"万円"]
[null,null,null,null,null,null,null,null,null,null,null,null,null,null,null,null,null,null,null,null,null,null,null,null,null,null,null,null,null,null,null,null,null,null,null,null,null,null,null,null,null,null,null,null,null,null,null,null,null,null,null,null,null,null,"万円",null,null,null,null,"万円"]
[null,null,null,null,null,null,null,null,null,null,null,null,null,null,null,null,null,null,null,null,null,null,null,null,null,null,null,null,null,null,null,null,null,null,null,null,null,null,null,null,null,null,null,null,null,null,null,null,null,null,null,null,null,null,"万円",null,null,null,null,"万円"]
[null,null,null,null,null,null,null,null,null,null,null,null,null,null,null,null,null,null,null,null,null,null,null,null,null,null,null,null,null,null,null,null,null,null,null,null,null,null,null,null,null,null,null,null,null,null,null,null,null,null,null,null,null,null,"万円",null,null,null,null,"万円"]
[null,null,null,null,null,null,null,null,null,null,null,null,null,null,null,null,null,null,null,null,null,null,null,null,null,null,null,null,null,null,null,null,null,null,null,null,null,null,null,null,null,null,null,null,null,null,null,null,null,null,null,null,null,null,"万円",null,null,null,null,"万円"]
[null,null,null,null,null,null,null,null,null,null,null,null,null,null,null,null,null,null,null,null,null,null,null,null,null,null,null,null,null,null,null,null,null,null,null,null,null,null,null,null,null,null,null,null,null,null,null,null,null,null,null,null,null,null,"万円",null,null,null,null,"万円"]
[null,null,null,null,null,null,null,null,null,null,null,null,null,null,null,null,null,null,null,null,null,null,null,null,null,null,null,null,null,null,null,null,null,null,null,null,null,null,null,null,null,null,null,null,null,null,null,null,null,null,null,null,null,null,"万円",null,null,null,null,"万円"]
[null,null,null,null,null,null,null,null,null,null,null,null,null,null,null,null,null,null,null,null,null,null,null,null,null,null,null,null,null,null,null,null,null,null,null,null,null,null,null,null,null,null,null,null,null,null,null,null,null,null,null,null,null,null,"万円",null,null,null,null,"万円"]
[null,null,null,null,null,null,null,null,null,null,null,null,null,null,null,null,null,null,null,null,null,null,null,null,null,null,null,null,null,null,null,null,null,null,null,null,null,null,null,null,null,null,null,null,null,null,null,null,null,null,null,null,null,null,"万円",null,null,null,null,"万円"]
[null,null,null,null,null,null,null,null,null,null,null,null,null,null,null,null,null,null,null,null,null,null,null,null,null,null,null,null,null,null,null,null,null,null,null,null,null,null,null,null,null,null,null,null,null,null,null,null,null,null,null,null,null,null,"万円",null,null,null,null,"万円"]
[null,null,null,null,null,null,null,null,null,null,null,null,null,null,null,null,null,null,null,null,null,null,null,null,null,null,null,null,null,null,null,null,null,null,null,null,null,null,null,null,null,null,null,null,null,null,null,null,null,null,null,null,null,null,"万円",null,null,null,null,"万円"]
[null,null,null,null,null,null,null,null,null,null,null,null,null,null,null,null,null,null,null,null,null,null,null,null,null,null,null,null,null,null,null,null,null,null,null,null,null,null,null,null,null,null,null,null,null,null,null,null,null,null,null,null,null,null,"万円",null,null,null,null,"万円"]
[null,null,null,null,null,null,null,null,null,null,null,null,null,null,null,null,null,null,null,null,null,null,null,null,null,null,null,null,null,null,null,null,null,null,null,null,null,null,null,null,null,null,null,null,null,null,null,null,null,null,null,null,null,null,"万円",null,null,null,null,"万円"]
[null,null,null,null,null,null,null,null,null,null,null,null,null,null,null,null,null,null,null,null,null,null,null,null,null,null,null,null,null,null,null,null,null,null,null,null,null,null,null,null,null,null,null,null,null,null,null,null,null,null,null,null,null,null,"万円",null,null,null,null,"万円"]
[null,null,null,null,null,null,null,null,null,null,null,null,null,null,null,null,null,null,null,null,null,null,null,null,null,null,null,null,null,null,null,null,null,null,null,null,null,null,null,null,null,null,null,null,null,null,null,null,null,null,null,null,null,null,"万円",null,null,null,null,"万円"]
[null,null,null,null,null,null,null,null,null,null,null,null,null,null,null,null,null,null,null,null,null,null,null,null,null,null,null,null,null,null,null,null,null,null,null,null,null,null,null,null,null,null,null,null,null,null,null,null,null,null,null,null,null,null,"万円",null,null,null,null,"万円"]
[null,null,null,null,null,null,null,null,null,null,null,null,null,null,null,null,null,null,null,null,null,null,null,null,null,null,null,null,null,null,null,null,null,null,null,null,null,null,null,null,null,null,null,null,null,null,null,null,null,null,null,null,null,null,"万円",null,null,null,null,"万円"]
[null,null,null,null,null,null,null,null,null,null,null,null,null,null,null,null,null,null,null,null,null,null,null,null,null,null,null,null,null,null,null,null,null,null,null,null,null,null,null,null,null,null,null,null,null,null,null,null,null,null,null,null,null,null,"万円",null,null,null,null,"万円"]
[null,null,null,null,null,null,null,null,null,null,null,null,null,null,null,null,null,null,null,null,null,null,null,null,null,null,null,null,null,null,null,null,null,null,null,null,null,null,null,null,null,null,null,null,null,null,null,null,null,null,null,null,null,null,"万円",null,null,null,null,"万円"]
[null,null,null,null,null,null,null,null,null,null,null,null,null,null,null,null,null,null,null,null,null,null,null,null,null,null,null,null,null,null,null,null,null,null,null,null,null,null,null,null,null,null,null,null,null,null,null,null,null,null,null,null,null,null,"万円",null,null,null,null,"万円"]
[null,null,null,null,null,null,null,null,null,null,null,null,null,null,null,null,null,null,null,null,null,null,null,null,null,null,null,null,null,null,null,null,null,null,null,null,null,null,null,null,null,null,null,null,null,null,null,null,null,null,null,null,null,null,"万円",null,null,null,null,"万円"]
[]
[null,"（３）農用地及び農業生産施設"]
[null,"ア　農用地",null,null,null,null,null,null,null,null,null,null,null,null,null,null,null,null,null,null,null,null,null,null,null,null,null,null,null,null,null,"イ　農業生産施設"]
[null,"区　分",null,null,null,"所在地",null,null,null,null,null,null,null,"地　目",null,null,null,"現　　状",null,null,null,null,null,null,{"$f":"\"目標（\"&IF(AT63=\"\",\"    \",AT63)&\"年）\"","v":"目標（2025年）"},null,null,null,null,null,null,"種　　別",null,null,null,null,null,"所在地",null,null,null,null,null,null,null,"規　　模"]
[null,null,null,null,null,"都道府県名",null,null,null,"市町村名",null,null,null,null,null,null,null,null,null,null,null,null,null,null,null,null,null,null,null,null,null,null,null,null,null,null,null,"都道府県名",null,null,null,"市町村名",null,null,null,"現　　状",null,null,null,null,null,null,null,{"$f":"\"目標（\"&IF(AT63=\"\",\"    \",AT63)&\"年）\"","v":"目標（2025年）"}]
[null,null,null,null,null,null,null,null,null,null,null,null,null,null,null,null,null,null,null,null,null,null,null,null,null,null,null,null,null,null,null,null,null,null,null,null,null,null,null,null,null,null,null,null,null,"棟",null,null,null,"㎡",null,null,null,"棟",null,null,null,"㎡"]
[null,"所有地"]
[]
[]
[]
[]
[]
[]
[]
[]
[]
[null,"借入地"]
[]
[]
[]
[]
[]
[]
[]
[]
[]
[null,"その他"]
[]
[]
[]
[]
[]
[]
[]
[]
[]
[null,"経 営 面 積 合 計",null,null,null,null,null,null,null,null,null,null,null,null,null,null,null,null,null,null,null,null,null,null,null,null,null,null,null,null,null,"経 営 面 積 合 計"]
[]
[null,"③　生産方式の合理化に関する現状と目標・措置",null,null,null,null,null,null,null,null,null,null,null,null,null,null,null,null,null,null,null,null,null,null,null,null,null,null,null,null,null,"④　経営管理の合理化に関する現状と目標・措置"]
[null,"（現状）",null,null,null,null,null,null,null,null,null,null,null,null,null,null,null,null,null,null,null,null,null,null,null,null,null,null,null,null,null,"（現状）"]
[]
[null,"（目標・措置）",null,null,null,null,null,null,null,null,null,null,null,null,null,null,null,null,null,null,null,null,null,null,null,null,null,null,null,null,null,"（目標・措置）"]
[]
[null,"⑤　農業従事の態様の改善に関する現状と目標・措置",null,null,null,null,null,null,null,null,null,null,null,null,null,null,null,null,null,null,null,null,null,null,null,null,null,null,null,null,null,"⑥　その他の農業経営の改善に関する現状と目標・措置"]
[null,"（現状）",null,null,null,null,null,null,null,null,null,null,null,null,null,null,null,null,null,null,null,null,null,null,null,null,null,null,null,null,null,"（現状）"]
[]
[null,"（目標・措置）",null,null,null,null,null,null,null,null,null,null,null,null,null,null,null,null,null,null,null,null,null,null,null,null,null,null,null,null,null,"（目標・措置）"]
[]
[]
[null,"（参考）経営の構成"]
[null,"（１）構成員・役員",null,null,null,null,null,null,null,null,null,null,null,null,null,null,null,null,null,null,null,null,null,null,null,null,null,null,null,null,null,null,null,null,null,"（２）雇  用  者"]
[null,"氏    名\n（法人経営にあっては役員の氏名）",null,null,null,null,null,"年齢",null,"性別",null,"代表者との\n続柄（法人\n経営にあっ\nては役職）",null,null,null,"現　　状",null,null,null,null,null,null,null,null,null,{"$f":"\"目標（\"&IF(AT63=\"\",\"    \",AT63)&\"年）\"","v":"目標（2025年）"},null,null,null,null,null,null,null,null,null,"常時雇（年間）",null,null,null,null,null,"実 人 数",null,null,null,"現　状",null,null,null,null,null,null,"人","見通し",null,null,null,null,null,null,"人"]
[null,null,null,null,null,null,null,null,null,null,null,null,null,null,null,"担当業務",null,null,null,"主たる\n従事者",null,"年間農業\n従事時間",null,null,null,"担当業務",null,null,null,"主たる\n従事者",null,"年間農業\n従事時間",null,null,null,"臨時雇（年間）",null,null,null,null,null,"実 人 数",null,null,null,"現　状",null,null,null,null,null,null,"人","見通し",null,null,null,null,null,null,"人"]
[null,null,null,null,null,null,null,null,null,null,null,null,null,null,null,null,null,null,null,null,null,null,null,null,null,null,null,null,null,null,null,null,null,null,null,null,null,null,null,null,null,"延べ人数",null,null,null,"現　状",null,null,null,null,null,null,"人","見通し",null,null,null,null,null,null,"人"]
[null,null,null,null,null,null,null,null,null,null,null,"(代表者）"]
[]
[]
[]
[]
[]
[]
[]
[]
[]
[]
[]
[null,"（別紙）生産方式の合理化に係る農業用機械等の取得計画"]
[null,"農業用機械等の名称",null,null,null,null,null,null,null,null,null,null,null,"現状",null,null,null,null,null,"目標",null,null,null,null,null,"数量\n（新規及び更新取得分）",null,null,null,null,null,"農業用機械等の名称",null,null,null,null,null,null,null,null,null,null,null,"現状",null,null,null,null,null,"目標",null,null,null,null,null,"数量\n（新規及び更新取得分）"]
[]
[]
[]
[]
[]
[]
[]
[]
[]
[]
[]
[]
[]
[]
[]
[]
[null,"制度資金利用の有無",null,null,null,null,null,null,null,null,null,null,null,null,null,null,null,null,null,null,null,null,null,null,null,"有の場合"]
[null,null,null,null,null,null,null,null,null,null,null,null,null,null,null,null,null,null,null,null,null,null,null,null,null,"ア　予定年度・資金・使途"]
[]
[null,null,null,null,null,null,null,null,null,null,null,null,null,null,null,null,null,null,null,null,null,null,null,null,null,"イ　資産及び負債の現状"]
[]
[null,null,null,null,null,null,null,null,null,null,null,null,null,null,null,null,null,null,null,null,null,null,null,null,null,"ウ　今後の資金需要等"]
[]
[]
[null,"備考"]
[null,"　「農業用機械等の名称」欄には、生産方式の合理化のために、取得する予定の農業用の機械及び装置、器具及び備品、建物及びその附属設備、構築物並びにソフトウェア等を記載する。"]
[null,"　（②「（３）農用地及び農業生産施設」に記載しているものは記載不要。）"]
[]
[null,"別紙　農業経営の規模拡大に関する現状及び目標"]
[null,"（１）生産"]
[null,"作目・\n部門名\n（耕　種）",null,null,null,"現　　状",null,null,null,null,null,null,null,{"$f":"\"目標（\"&IF(AT63=\"\",\"    \",AT63)&\"年）\"","v":"目標（2025年）"},null,null,null,null,null,null,null,"作目・\n部門名\n（耕　種）",null,null,null,"現　　状",null,null,null,null,null,null,null,{"$f":"\"目標（\"&IF(AT63=\"\",\"    \",AT63)&\"年）\"","v":"目標（2025年）"},null,null,null,null,null,null,null,"作目・\n部門名\n（耕　種）",null,null,null,"現　　状",null,null,null,null,null,null,null,{"$f":"\"目標（\"&IF(AT63=\"\",\"    \",AT63)&\"年）\"","v":"目標（2025年）"}]
[null,null,null,null,null,"作付面積",null,null,null,"生産量",null,null,null,"作付面積",null,null,null,"生産量",null,null,null,null,null,null,null,"作付面積",null,null,null,"生産量",null,null,null,"作付面積",null,null,null,"生産量",null,null,null,null,null,null,null,"作付面積",null,null,null,"生産量",null,null,null,"作付面積",null,null,null,"生産量"]
[null,{"$f":"IF(B74=\"\",\"\",B74)","v":""},null,null,null,{"$f":"IF(H74=\"\",\"\",H74)","v":""},null,null,{"$f":"IF(K74=\"\",\"\",K74)","v":""},"",null,null,{"$f":"IF(O74=\"\",\"\",O74)","v":""},"",null,null,{"$f":"IF(S74=\"\",\"\",S74)","v":""},"",null,null,{"$f":"IF(W74=\"\",\"\",W74)","v":""}]
[null,"",null,null,null,"",null,null,"","",null,null,"","",null,null,"","",null,null,""]
[null,"",null,null,null,"",null,null,"","",null,null,"","",null,null,"","",null,null,""]
[null,"",null,null,null,"",null,null,"","",null,null,"","",null,null,"","",null,null,""]
[null,"",null,null,null,"",null,null,"","",null,null,"","",null,null,"","",null,null,""]
[null,"",null,null,null,"",null,null,"","",null,null,"","",null,null,"","",null,null,""]
[null,"",null,null,null,"",null,null,"","",null,null,"","",null,null,"","",null,null,""]
[null,"",null,null,null,"",null,null,"","",null,null,"","",null,null,"","",null,null,""]
[null,"",null,null,null,"",null,null,"","",null,null,"","",null,null,"","",null,null,""]
[null,"",null,null,null,"",null,null,"","",null,null,"","",null,null,"","",null,null,""]
[null,"",null,null,null,"",null,null,"","",null,null,"","",null,null,"","",null,null,""]
[null,"",null,null,null,"",null,null,"","",null,null,"","",null,null,"","",null,null,""]
[null,"",null,null,null,"",null,null,"","",null,null,"","",null,null,"","",null,null,""]
[null,"",null,null,null,"",null,null,"","",null,null,"","",null,null,"","",null,null,""]
[null,"",null,null,null,"",null,null,"","",null,null,"","",null,null,"","",null,null,""]
[null,"",null,null,null,"",null,null,"","",null,null,"","",null,null,"","",null,null,""]
[null,"",null,null,null,"",null,null,"","",null,null,"","",null,null,"","",null,null,""]
[null,"",null,null,null,"",null,null,"","",null,null,"","",null,null,"","",null,null,""]
[null,"",null,null,null,"",null,null,"","",null,null,"","",null,null,"","",null,null,""]
[null,"",null,null,null,"",null,null,"","",null,null,"","",null,null,"","",null,null,""]
[null,"",null,null,null,"",null,null,"","",null,null,"","",null,null,"","",null,null,""]
[null,"",null,null,null,"",null,null,"","",null,null,"","",null,null,"","",null,null,""]
[null,"",null,null,null,"",null,null,"","",null,null,"","",null,null,"","",null,null,""]
[null,"",null,null,null,"",null,null,"","",null,null,"","",null,null,"","",null,null,""]
[]
[null,"別紙　農業経営の規模拡大に関する現状及び目標"]
[null,"（１）構成員・役員"]
[null,"氏    名\n（法人経営にあっては役員の氏名）",null,null,null,null,"年齢",null,"性別",null,"代表者との\n続柄（法人\n経営にあっ\nては役職）",null,null,"現　　状",null,null,null,null,null,null,null,null,{"$f":"\"目標（\"&IF(AT63=\"\",\"    \",AT63)&\"年）\"","v":"目標（2025年）"},null,null,null,null,null,null,null,null,"氏    名\n（法人経営にあっては役員の氏名）",null,null,null,null,"年齢",null,"性別",null,"代表者との\n続柄（法人\n経営にあっ\nては役職）",null,null,"現　　状",null,null,null,null,null,null,null,null,{"$f":"\"目標（\"&IF(AT63=\"\",\"    \",AT63)&\"年）\"","v":"目標（2025年）"}]
[null,null,null,null,null,null,null,null,null,null,null,null,null,"担当業務",null,null,null,"主たる\n従事者",null,"年間農業\n従事時間",null,null,"担当業務",null,null,null,"主たる\n従事者",null,"年間農業\n従事時間",null,null,null,null,null,null,null,null,null,null,null,null,null,null,"担当業務",null,null,null,"主たる\n従事者",null,"年間農業\n従事時間",null,null,"担当業務",null,null,null,"主たる\n従事者",null,"年間農業\n従事時間"]
[]
[null,null,null,null,null,null,null,null,null,null,"（代表者）"]
[null,{"$f":"IF(B153=\"\",\"\",B153)","v":""},null,null,null,null,{"$f":"IF(H153=\"\",\"\",H153)","v":""},null,{"$f":"IF(J153=\"\",\"\",J153)","v":""},null,{"$f":"IF(L153=\"\",\"\",L153)","v":""},null,null,{"$f":"IF(P153=\"\",\"\",P153)","v":""},null,null,null,{"$f":"IF(T153=\"\",\"\",T153)","v":""},null,{"$f":"IF(V153=\"\",\"\",V153)","v":""},null,null,{"$f":"IF(Z153=\"\",\"\",Z153)","v":""},null,null,null,{"$f":"IF(AD153=\"\",\"\",AD153)","v":""},null,{"$f":"IF(AF153=\"\",\"\",AF153)","v":""}]
[null,"",null,null,null,null,"",null,"",null,"",null,null,"",null,null,null,"",null,"",null,null,"",null,null,null,"",null,""]
[null,"",null,null,null,null,"",null,"",null,"",null,null,"",null,null,null,"",null,"",null,null,"",null,null,null,"",null,""]
[null,"",null,null,null,null,"",null,"",null,"",null,null,"",null,null,null,"",null,"",null,null,"",null,null,null,"",null,""]
[null,"",null,null,null,null,"",null,"",null,"",null,null,"",null,null,null,"",null,"",null,null,"",null,null,null,"",null,""]
[null,"",null,null,null,null,"",null,"",null,"",null,null,"",null,null,null,"",null,"",null,null,"",null,null,null,"",null,""]
[null,"",null,null,null,null,"",null,"",null,"",null,null,"",null,null,null,"",null,"",null,null,"",null,null,null,"",null,""]
[null,"",null,null,null,null,"",null,"",null,"",null,null,"",null,null,null,"",null,"",null,null,"",null,null,null,"",null,""]
[null,"",null,null,null,null,"",null,"",null,"",null,null,"",null,null,null,"",null,"",null,null,"",null,null,null,"",null,""]
[null,"",null,null,null,null,"",null,"",null,"",null,null,"",null,null,null,"",null,"",null,null,"",null,null,null,"",null,""]
[]
[]
[]
[]
[]
[]
[]
[]
[]
[]
[]
[]
[]
[]
[]
[]
[]
[]
[]
[]
[]
[null,"（別紙）生産方式の合理化に係る農業用機械等の取得計画"]
[null,"農業用機械等の名称",null,null,null,null,null,null,null,null,null,null,null,"現状",null,null,null,null,null,"目標",null,null,null,null,null,"数量\n（新規及び更新取得分）",null,null,null,null,null,"農業用機械等の名称",null,null,null,null,null,null,null,null,null,null,null,"現状",null,null,null,null,null,"目標",null,null,null,null,null,"数量\n（新規及び更新取得分）"]
[null,{"$f":"IF(B166=\"\",\"\",B166)","v":""},null,null,null,null,null,null,null,null,null,null,null,{"$f":"IF(N166=\"\",\"\",N166)","v":""},null,null,null,null,null,{"$f":"IF(T166=\"\",\"\",T166)","v":""},null,null,null,null,null,{"$f":"IF(Z166=\"\",\"\",Z166)","v":""}]
[null,"",null,null,null,null,null,null,null,null,null,null,null,"",null,null,null,null,null,"",null,null,null,null,null,""]
[null,"",null,null,null,null,null,null,null,null,null,null,null,"",null,null,null,null,null,"",null,null,null,null,null,""]
[null,"",null,null,null,null,null,null,null,null,null,null,null,"",null,null,null,null,null,"",null,null,null,null,null,""]
[null,"",null,null,null,null,null,null,null,null,null,null,null,"",null,null,null,null,null,"",null,null,null,null,null,""]
[null,"",null,null,null,null,null,null,null,null,null,null,null,"",null,null,null,null,null,"",null,null,null,null,null,""]
[null,"",null,null,null,null,null,null,null,null,null,null,null,"",null,null,null,null,null,"",null,null,null,null,null,""]
[null,"",null,null,null,null,null,null,null,null,null,null,null,"",null,null,null,null,null,"",null,null,null,null,null,""]
[null,"",null,null,null,null,null,null,null,null,null,null,null,"",null,null,null,null,null,"",null,null,null,null,null,""]
[null,"",null,null,null,null,null,null,null,null,null,null,null,"",null,null,null,null,null,"",null,null,null,null,null,""]
[null,"",null,null,null,null,null,null,null,null,null,null,null,"",null,null,null,null,null,"",null,null,null,null,null,""]
[null,"",null,null,null,null,null,null,null,null,null,null,null,"",null,null,null,null,null,"",null,null,null,null,null,""]
[null,"",null,null,null,null,null,null,null,null,null,null,null,"",null,null,null,null,null,"",null,null,null,null,null,""]
[null,"",null,null,null,null,null,null,null,null,null,null,null,"",null,null,null,null,null,"",null,null,null,null,null,""]
[null,"",null,null,null,null,null,null,null,null,null,null,null,"",null,null,null,null,null,"",null,null,null,null,null,""]
[null,{"$f":"IF(AF166=\"\",\"\",AF166)","v":""},null,null,null,null,null,null,null,null,null,null,null,{"$f":"IF(AR166=\"\",\"\",AR166)","v":""},null,null,null,null,null,{"$f":"IF(AX166=\"\",\"\",AX166)","v":""},null,null,null,null,null,{"$f":"IF(BD166=\"\",\"\",BD166)","v":""}]
[null,"",null,null,null,null,null,null,null,null,null,null,null,"",null,null,null,null,null,"",null,null,null,null,null,""]
[null,"",null,null,null,null,null,null,null,null,null,null,null,"",null,null,null,null,null,"",null,null,null,null,null,""]
[null,"",null,null,null,null,null,null,null,null,null,null,null,"",null,null,null,null,null,"",null,null,null,null,null,""]
[null,"",null,null,null,null,null,null,null,null,null,null,null,"",null,null,null,null,null,"",null,null,null,null,null,""]
[null,"",null,null,null,null,null,null,null,null,null,null,null,"",null,null,null,null,null,"",null,null,null,null,null,""]
[null,"",null,null,null,null,null,null,null,null,null,null,null,"",null,null,null,null,null,"",null,null,null,null,null,""]
[null,"",null,null,null,null,null,null,null,null,null,null,null,"",null,null,null,null,null,"",null,null,null,null,null,""]
[null,"",null,null,null,null,null,null,null,null,null,null,null,"",null,null,null,null,null,"",null,null,null,null,null,""]
[null,"",null,null,null,null,null,null,null,null,null,null,null,"",null,null,null,null,null,"",null,null,null,null,null,""]
[null,"",null,null,null,null,null,null,null,null,null,null,null,"",null,null,null,null,null,"",null,null,null,null,null,""]
[null,"",null,null,null,null,null,null,null,null,null,null,null,"",null,null,null,null,null,"",null,null,null,null,null,""]
[null,"",null,null,null,null,null,null,null,null,null,null,null,"",null,null,null,null,null,"",null,null,null,null,null,""]
[null,"",null,null,null,null,null,null,null,null,null,null,null,"",null,null,null,null,null,"",null,null,null,null,null,""]
[null,"",null,null,null,null,null,null,null,null,null,null,null,"",null,null,null,null,null,"",null,null,null,null,null,""]

{"sheet":"02入力例","index":1,"n_rows":291,"n_cols":61,"rows_kept":291,"cut":false,"hidden":false,"merged":[[1,1,1,25],[2,1,2,8],[2,9,2,11],[2,12,2,25],[3,1,3,8],[3,9,3,11],[3,12,3,23],[3,24,3,25],[4,1,4,8],[4,9,4,11],[4,12,4,25],[6,1,6,25],[6,36,6,60],[7,1,7,8],[7,9,7,11],[7,12,7,25],[8,1,8,8],[8,9,8,11],[8,12,8,23],[8,24,8,25],[8,26,8,34],[9,1,9,8],[9,9,9,11],[9,12,9,25],[9,26,9,34],[10,1,10,8],[10,9,10,11],[10,12,10,25],[10,26,10,34],[11,1,11,8],[11,9,11,11],[11,12,11,25],[11,26,11,34],[12,1,12,8],[12,9,12,11],[12,12,12,25],[12,26,12,34],[13,1,13,8],[13,9,13,11],[13,12,13,25],[13,26,13,34],[14,1,14,8],[14,9,14,11],[14,12,14,25],[15,1,15,8],[15,9,15,11],[15,12,15,25],[16,1,16,8],[16,9,16,11],[16,12,16,25],[17,1,17,8],[17,9,17,11],[17,12,17,25],[18,1,18,8],[18,9,18,11],[18,12,18,25],[19,1,19,8],[19,9,19,11],[19,12,19,25],[20,1,20,8],[20,9,20,11],[20,12,20,25],[22,1,22,25],[23,12,23,25],[24,12,24,25],[25,1,25,8],[25,9,25,11],[25,12,25,25],[25,26,25,34],[26,1,26,8],[26,9,26,11],[26,12,26,25],[26,26,26,34],[27,1,27,8],[27,9,27,11],[27,12,27,25],[27,26,27,34],[28,1,28,8],[28,9,28,11],[28,12,28,25],[28,26,28,34],[29,1,29,8],[29,9,29,11],[29,12,29,25],[29,26,29,34],[30,1,30,8],[30,9,30,11],[30,12,30,25],[30,26,30,34],[31,1,31,8],[31,9,31,11],[31,12,31,25],[31,26,31,34],[32,1,32,8],[32,9,32,11],[32,12,32,25],[33,1,33,8],[33,9,33,11],[33,12,33,25],[34,1,34,8],[34,9,34,11],[34,12,34,25],[35,1,35,8],[35,9,35,11],[35,12,35,25],[37,1,37,34],[37,35,37,37],[37,38,37,60],[38,43,38,47],[38,48,38,60],[39,46,39,47],[39,48,39,60],[40,46,40,47],[40,48,40,60],[41,17,41,21],[41,22,41,37],[41,38,41,42],[41,43,41,60],[42,17,42,21],[42,22,42,37],[42,38,42,42],[42,43,42,60],[43,17,43,21],[43,22,43,31],[43,32,43,33],[43,34,43,35],[43,36,43,37],[43,38,43,42],[43,43,43,60],[44,17,44,21],[44,22,44,31],[44,32,44,37],[45,17,45,21],[45,22,45,37],[46,17,46,21],[46,22,46,37],[47,17,47,21],[47,22,47,31],[47,32,47,33],[47,34,47,35],[47,36,47,37],[48,17,48,21],[48,22,48,37],[49,17,49,21],[49,22,49,37],[50,17,50,21],[50,22,50,31],[50,32,50,33],[50,34,50,35],[50,36,50,37],[51,17,51,21],[51,22,51,37],[52,17,52,21],[52,22,52,37],[53,17,53,21],[53,22,53,31],[53,32,53,33],[53,34,53,35],[53,36,53,37],[54,17,54,21],[54,22,54,37],[55,17,55,21],[55,22,55,37],[56,17,56,21],[56,22,56,31],[56,32,56,33],[56,34,56,35],[56,36,56,37],[58,1,58,60],[59,1,59,60],[60,1,60,60],[61,1,61,60],[62,1,62,30],[62,31,62,44],[62,45,62,47],[62,48,62,60],[63,1,63,15],[63,16,63,30],[63,31,63,45],[63,46,63,60],[64,1,64,60],[65,1,65,11],[65,12,65,19],[65,20,65,27],[65,28,65,38],[65,39,65,46],[65,47,65,54],[66,1,66,11],[66,12,66,17],[66,18,66,19],[66,20,66,25],[66,26,66,27],[66,28,66,38],[66,39,66,44],[66,45,66,46],[66,47,66,52],[66,53,66,54],[67,1,67,2],[67,3,67,11],[67,12,67,17],[67,18,67,19],[67,20,67,25],[67,26,67,27],[67,28,67,29],[67,30,67,38],[67,39,67,44],[67,45,67,46],[67,47,67,52],[67,53,67,54],[69,1,69,60],[70,1,70,44],[71,7,71,14],[71,15,71,22],[71,29,71,36],[71,37,71,44],[72,7,72,10],[72,11,72,14],[72,15,72,18],[72,19,72,22],[72,29,72,32],[72,33,72,36],[72,37,72,40],[72,41,72,44],[72,45,72,50],[72,51,72,55],[72,56,72,60],[73,1,73,6],[73,7,73,9],[73,11,73,13],[73,15,73,17],[73,19,73,21],[73,23,73,28],[73,29,73,31],[73,33,73,35],[73,37,73,39],[73,41,73,43],[73,45,73,50],[73,51,73,53],[73,54,73,55],[73,56,73,58],[73,59,73,60],[74,1,74,6],[74,7,74,9],[74,11,74,13],[74,15,74,17],[74,19,74,21],[74,23,74,28],[74,29,74,31],[74,33,74,35],[74,37,74,39],[74,41,74,43],[74,45,74,50],[74,51,74,53],[74,54,74,55],[74,56,74,58],[74,59,74,60],[75,1,75,6],[75,7,75,9],[75,11,75,13],[75,15,75,17],[75,19,75,21],[75,23,75,28],[75,29,75,31],[75,33,75,35],[75,37,75,39],[75,41,75,43],[75,45,75,50],[75,51,75,53],[75,54,75,55],[75,56,75,58],[75,59,75,60],[76,1,76,6],[76,7,76,9],[76,11,76,13],[76,15,76,17],[76,19,76,21],[76,23,76,28],[76,29,76,31],[76,33,76,35],[76,37,76,39],[76,41,76,43],[76,45,76,50],[76,51,76,53],[76,54,76,55],[76,56,76,58],[76,59,76,60],[77,1,77,6],[77,7,77,9],[77,11,77,13],[77,15,77,17],[77,19,77,21],[77,23,77,28],[77,29,77,31],[77,33,77,35],[77,37,77,39],[77,41,77,43],[77,45,77,50],[77,51,77,53],[77,54,77,55],[77,56,77,58],[77,59,77,60],[78,1,78,6],[78,7,78,9],[78,11,78,13],[78,15,78,17],[78,19,78,21],[78,23,78,28],[78,29,78,31],[78,33,78,35],[78,37,78,39],[78,41,78,43],[78,45,78,50],[78,51,78,53],[78,54,78,55],[78,56,78,58],[78,59,78,60],[79,1,79,6],[79,7,79,9],[79,11,79,13],[79,15,79,17],[79,19,79,21],[79,23,79,28],[79,29,79,31],[79,33,79,35],[79,37,79,39],[79,41,79,43],[79,45,79,50],[79,51,79,53],[79,54,79,55],[79,56,79,58],[79,59,79,60],[80,1,80,6],[80,7,80,9],[80,11,80,13],[80,15,80,17],[80,19,80,21],[80,23,80,28],[80,29,80,31],[80,33,80,35],[80,37,80,39],[80,41,80,43],[80,45,80,50],[80,51,80,53],[80,54,80,55],[80,56,80,58],[80,59,80,60],[81,1,81,6],[81,7,81,9],[81,11,81,13],[81,15,81,17],[81,19,81,21],[81,23,81,28],[81,29,81,31],[81,33,81,35],[81,37,81,39],[81,41,81,43],[81,45,81,50],[81,51,81,53],[81,54,81,55],[81,56,81,58],[81,59,81,60],[82,1,82,6],[82,7,82,9],[82,11,82,13],[82,15,82,17],[82,19,82,21],[82,23,82,28],[82,29,82,31],[82,33,82,35],[82,37,82,39],[82,41,82,43],[82,45,82,50],[82,51,82,53],[82,54,82,55],[82,56,82,58],[82,59,82,60],[83,1,83,6],[83,7,83,9],[83,11,83,13],[83,15,83,17],[83,19,83,21],[83,23,83,28],[83,29,83,31],[83,33,83,35],[83,37,83,39],[83,41,83,43],[83,45,83,50],[83,51,83,53],[83,54,83,55],[83,56,83,58],[83,59,83,60],[84,1,84,6],[84,7,84,9],[84,11,84,13],[84,15,84,17],[84,19,84,21],[84,23,84,28],[84,29,84,31],[84,33,84,35],[84,37,84,39],[84,41,84,43],[84,45,84,50],[84,51,84,53],[84,54,84,55],[84,56,84,58],[84,59,84,60],[85,1,85,6],[85,7,85,9],[85,11,85,13],[85,15,85,17],[85,19,85,21],[85,23,85,28],[85,29,85,31],[85,33,85,35],[85,37,85,39],[85,41,85,43],[85,45,85,50],[85,51,85,53],[85,54,85,55],[85,56,85,58],[85,59,85,60],[86,1,86,6],[86,7,86,9],[86,11,86,13],[86,15,86,17],[86,19,86,21],[86,23,86,28],[86,29,86,31],[86,33,86,35],[86,37,86,39],[86,41,86,43],[86,45,86,50],[86,51,86,53],[86,54,86,55],[86,56,86,58],[86,59,86,60],[87,1,87,6],[87,7,87,9],[87,11,87,13],[87,15,87,17],[87,19,87,21],[87,23,87,28],[87,29,87,31],[87,33,87,35],[87,37,87,39],[87,41,87,43],[87,45,87,50],[87,51,87,53],[87,54,87,55],[87,56,87,58],[87,59,87,60],[88,1,88,6],[88,7,88,9],[88,11,88,13],[88,15,88,17],[88,19,88,21],[88,23,88,28],[88,29,88,31],[88,33,88,35],[88,37,88,39],[88,41,88,43],[88,45,88,50],[88,51,88,53],[88,54,88,55],[88,56,88,58],[88,59,88,60],[89,1,89,6],[89,7,89,9],[89,11,89,13],[89,15,89,17],[89,19,89,21],[89,23,89,28],[89,29,89,31],[89,33,89,35],[89,37,89,39],[89,41,89,43],[89,45,89,50],[89,51,89,53],[89,54,89,55],[89,56,89,58],[89,59,89,60],[90,1,90,6],[90,7,90,9],[90,11,90,13],[90,15,90,17],[90,19,90,21],[90,23,90,28],[90,29,90,31],[90,33,90,35],[90,37,90,39],[90,41,90,43],[90,45,90,50],[90,51,90,53],[90,54,90,55],[90,56,90,58],[90,59,90,60],[91,1,91,6],[91,7,91,9],[91,11,91,13],[91,15,91,17],[91,19,91,21],[91,23,91,28],[91,29,91,31],[91,33,91,35],[91,37,91,39],[91,41,91,43],[91,45,91,50],[91,51,91,53],[91,54,91,55],[91,56,91,58],[91,59,91,60],[92,1,92,6],[92,7,92,9],[92,11,92,13],[92,15,92,17],[92,19,92,21],[92,23,92,28],[92,29,92,31],[92,33,92,35],[92,37,92,39],[92,41,92,43],[92,45,92,50],[92,51,92,53],[92,54,92,55],[92,56,92,58],[92,59,92,60],[93,1,93,6],[93,7,93,9],[93,11,93,13],[93,15,93,17],[93,19,93,21],[93,23,93,28],[93,29,93,31],[93,33,93,35],[93,37,93,39],[93,41,93,43],[93,45,93,50],[93,51,93,53],[93,54,93,55],[93,56,93,58],[93,59,93,60],[94,1,94,6],[94,7,94,9],[94,11,94,13],[94,15,94,17],[94,19,94,21],[94,23,94,28],[94,29,94,31],[94,33,94,35],[94,37,94,39],[94,41,94,43],[94,45,94,50],[94,51,94,53],[94,54,94,55],[94,56,94,58],[94,59,94,60],[95,1,95,6],[95,7,95,9],[95,11,95,13],[95,15,95,17],[95,19,95,21],[95,23,95,28],[95,29,95,31],[95,33,95,35],[95,37,95,39],[95,41,95,43],[95,45,95,50],[95,51,95,53],[95,54,95,55],[95,56,95,58],[95,59,95,60],[96,1,96,6],[96,7,96,9],[96,11,96,13],[96,15,96,17],[96,19,96,21],[96,23,96,28],[96,29,96,31],[96,33,96,35],[96,37,96,39],[96,41,96,43],[96,45,96,50],[96,51,96,53],[96,54,96,55],[96,56,96,58],[96,59,96,60],[98,1,98,60],[99,1,99,30],[99,31,99,60],[100,5,100,12],[100,37,100,44],[100,45,100,60],[101,45,101,52],[101,53,101,60],[102,45,102,48],[102,49,102,52],[102,53,102,56],[102,57,102,60],[103,5,103,8],[103,9,103,12],[103,13,103,16],[103,17,103,21],[103,22,103,23],[103,24,103,28],[103,29,103,30],[103,31,103,36],[103,37,103,40],[103,41,103,44],[103,45,103,48],[103,49,103,52],[103,53,103,56],[103,57,103,60],[104,5,104,8],[104,9,104,12],[104,13,104,16],[104,17,104,21],[104,22,104,23],[104,24,104,28],[104,29,104,30],[104,31,104,36],[104,37,104,40],[104,41,104,44],[104,45,104,48],[104,49,104,52],[104,53,104,56],[104,57,104,60],[105,5,105,8],[105,9,105,12],[105,13,105,16],[105,17,105,21],[105,22,105,23],[105,24,105,28],[105,29,105,30],[105,31,105,36],[105,37,105,40],[105,41,105,44],[105,45,105,48],[105,49,105,52],[105,53,105,56],[105,57,105,60],[106,5,106,8],[106,9,106,12],[106,13,106,16],[106,17,106,21],[106,22,106,23],[106,24,106,28],[106,29,106,30],[106,31,106,36],[106,37,106,40],[106,41,106,44],[106,45,106,48],[106,49,106,52],[106,53,106,56],[106,57,106,60],[107,5,107,8],[107,9,107,12],[107,13,107,16],[107,17,107,21],[107,22,107,23],[107,24,107,28],[107,29,107,30],[107,31,107,36],[107,37,107,40],[107,41,107,44],[107,45,107,48],[107,49,107,52],[107,53,107,56],[107,57,107,60],[108,5,108,8],[108,9,108,12],[108,13,108,16],[108,17,108,21],[108,22,108,23],[108,24,108,28],[108,29,108,30],[108,31,108,36],[108,37,108,40],[108,41,108,44],[108,45,108,48],[108,49,108,52],[108,53,108,56],[108,57,108,60],[109,5,109,8],[109,9,109,12],[109,13,109,16],[109,17,109,21],[109,22,109,23],[109,24,109,28],[109,29,109,30],[109,31,109,36],[109,37,109,40],[109,41,109,44],[109,45,109,48],[109,49,109,52],[109,53,109,56],[109,57,109,60],[110,5,110,8],[110,9,110,12],[110,13,110,16],[110,17,110,21],[110,22,110,23],[110,24,110,28],[110,29,110,30],[110,31,110,36],[110,37,110,40],[110,41,110,44],[110,45,110,48],[110,49,110,52],[110,53,110,56],[110,57,110,60],[111,5,111,8],[111,9,111,12],[111,13,111,16],[111,17,111,21],[111,22,111,23],[111,24,111,28],[111,29,111,30],[111,31,111,36],[111,37,111,40],[111,41,111,44],[111,45,111,48],[111,49,111,52],[111,53,111,56],[111,57,111,60],[112,5,112,8],[112,9,112,12],[112,13,112,16],[112,17,112,21],[112,22,112,23],[112,24,112,28],[112,29,112,30],[112,31,112,36],[112,37,112,40],[112,41,112,44],[112,45,112,48],[112,49,112,52],[112,53,112,56],[112,57,112,60],[113,5,113,8],[113,9,113,12],[113,13,113,16],[113,17,113,21],[113,22,113,23],[113,24,113,28],[113,29,113,30],[113,31,113,36],[113,37,113,40],[113,41,113,44],[113,45,113,48],[113,49,113,52],[113,53,113,56],[113,57,113,60],[114,5,114,8],[114,9,114,12],[114,13,114,16],[114,17,114,21],[114,22,114,23],[114,24,114,28],[114,29,114,30],[114,31,114,36],[114,37,114,40],[114,41,114,44],[114,45,114,48],[114,49,114,52],[114,53,114,56],[114,57,114,60],[115,5,115,8],[115,9,115,12],[115,13,115,16],[115,17,115,21],[115,22,115,23],[115,24,115,28],[115,29,115,30],[115,31,115,36],[115,37,115,40],[115,41,115,44],[115,45,115,48],[115,49,115,52],[115,53,115,56],[115,57,115,60],[116,5,116,8],[116,9,116,12],[116,13,116,16],[116,17,116,21],[116,22,116,23],[116,24,116,28],[116,29,116,30],[116,31,116,36],[116,37,116,40],[116,41,116,44],[116,45,116,48],[116,49,116,52],[116,53,116,56],[116,57,116,60],[117,5,117,8],[117,9,117,12],[117,13,117,16],[117,17,117,21],[117,22,117,23],[117,24,117,28],[117,29,117,30],[117,31,117,36],[117,37,117,40],[117,41,117,44],[117,45,117,48],[117,49,117,52],[117,53,117,56],[117,57,117,60],[118,5,118,8],[118,9,118,12],[118,13,118,16],[118,17,118,21],[118,22,118,23],[118,24,118,28],[118,29,118,30],[118,31,118,36],[118,37,118,40],[118,41,118,44],[118,45,118,48],[118,49,118,52],[118,53,118,56],[118,57,118,60],[119,5,119,8],[119,9,119,12],[119,13,119,16],[119,17,119,21],[119,22,119,23],[119,24,119,28],[119,29,119,30],[119,31,119,36],[119,37,119,40],[119,41,119,44],[119,45,119,48],[119,49,119,52],[119,53,119,56],[119,57,119,60],[120,5,120,8],[120,9,120,12],[120,13,120,16],[120,17,120,21],[120,22,120,23],[120,24,120,28],[120,29,120,30],[120,31,120,36],[120,37,120,40],[120,41,120,44],[120,45,120,48],[120,49,120,52],[120,53,120,56],[120,57,120,60],[121,5,121,8],[121,9,121,12],[121,13,121,16],[121,17,121,21],[121,22,121,23],[121,24,121,28],[121,29,121,30],[121,31,121,36],[121,37,121,40],[121,41,121,44],[121,45,121,48],[121,49,121,52],[121,53,121,56],[121,57,121,60],[122,5,122,8],[122,9,122,12],[122,13,122,16],[122,17,122,21],[122,22,122,23],[122,24,122,28],[122,29,122,30],[122,31,122,36],[122,37,122,40],[122,41,122,44],[122,45,122,48],[122,49,122,52],[122,53,122,56],[122,57,122,60],[123,5,123,8],[123,9,123,12],[123,13,123,16],[123,17,123,21],[123,22,123,23],[123,24,123,28],[123,29,123,30],[123,31,123,36],[123,37,123,40],[123,41,123,44],[123,45,123,48],[123,49,123,52],[123,53,123,56],[123,57,123,60],[124,5,124,8],[124,9,124,12],[124,13,124,16],[124,17,124,21],[124,22,124,23],[124,24,124,28],[124,29,124,30],[124,31,124,36],[124,37,124,40],[124,41,124,44],[124,45,124,48],[124,49,124,52],[124,53,124,56],[124,57,124,60],[125,5,125,8],[125,9,125,12],[125,13,125,16],[125,17,125,21],[125,22,125,23],[125,24,125,28],[125,29,125,30],[125,31,125,36],[125,37,125,40],[125,41,125,44],[125,45,125,48],[125,49,125,52],[125,53,125,56],[125,57,125,60],[126,5,126,8],[126,9,126,12],[126,13,126,16],[126,17,126,21],[126,22,126,23],[126,24,126,28],[126,29,126,30],[126,31,126,36],[126,37,126,40],[126,41,126,44],[126,45,126,48],[126,49,126,52],[126,53,126,56],[126,57,126,60],[127,5,127,8],[127,9,127,12],[127,13,127,16],[127,17,127,21],[127,22,127,23],[127,24,127,28],[127,29,127,30],[127,31,127,36],[127,37,127,40],[127,41,127,44],[127,45,127,48],[127,49,127,52],[127,53,127,56],[127,57,127,60],[128,5,128,8],[128,9,128,12],[128,13,128,16],[128,17,128,21],[128,22,128,23],[128,24,128,28],[128,29,128,30],[128,31,128,36],[128,37,128,40],[128,41,128,44],[128,45,128,48],[128,49,128,52],[128,53,128,56],[128,57,128,60],[129,5,129,8],[129,9,129,12],[129,13,129,16],[129,17,129,21],[129,22,129,23],[129,24,129,28],[129,29,129,30],[129,31,129,36],[129,37,129,40],[129,41,129,44],[129,45,129,48],[129,49,129,52],[129,53,129,56],[129,57,129,60],[130,5,130,8],[130,9,130,12],[130,13,130,16],[130,17,130,21],[130,22,130,23],[130,24,130,28],[130,29,130,30],[130,31,130,36],[130,37,130,40],[130,41,130,44],[130,45,130,48],[130,49,130,52],[130,53,130,56],[130,57,130,60],[131,5,131,8],[131,9,131,12],[131,13,131,16],[131,17,131,21],[131,22,131,23],[131,24,131,28],[131,29,131,30],[131,31,131,36],[131,37,131,40],[131,41,131,44]],"merged_total":2532,"flags":["merged_cut"]}
[]
[null,"市町村基本情報"]
[null,"市町村名",null,null,null,null,null,null,null,"（初期）",null,null,"岡山県"]
[null,"目標所得",null,null,null,null,null,null,null,"（初期）",null,null,5000,null,null,null,null,null,null,null,null,null,null,null,"千円"]
[null,"所得基準",null,null,null,null,null,null,null,"（初期）",null,null,"従事者１人"]
[]
[null,"認定業務",null,null,null,null,null,null,null,null,null,null,null,null,null,null,null,null,null,null,null,null,null,null,null,null,null,null,null,null,null,null,null,null,null,null,"備考"]
[null,"氏　　名\n（法人名／代表者名）",null,null,null,null,null,null,null,"（必須）",null,null,{"$f":"IF(W43=\"\",\"※申請書の氏名欄から自動で入力されます。\",IF(AR43=\"\",W43,W43&\"／\"&AR43))","v":"認定農業者経営改善計画書ＤＢ株式会社／岡山　認一郎"},null,null,null,null,null,null,null,null,null,null,null,null,null,null,null,null,null,null,null,null,null,null,null,"備考１",null,null,"備考１"]
[null,"認定（変更）年度",null,null,null,null,null,null,null,"（必須）",null,null,2020,null,null,null,null,null,null,null,null,null,null,null,"年度",null,"※西暦（例：2020）"]
[null,"前回認定番号",null,null,null,null,null,null,null,"（必須）",null,null,"岡山XXXX",null,null,null,null,null,null,null,null,null,null,null,null,null,"※再認定、変更時"]
[null,"今回認定番号",null,null,null,null,null,null,null,"（必須）",null,null,"岡山YYYY",null,null,null,null,null,null,null,null,null,null,null,null,null,"※認定後入力"]
[null,"認定（変更）日",null,null,null,null,null,null,null,"（必須）",null,null,"2020-04-01",null,null,null,null,null,null,null,null,null,null,null,null,null,"※認定後入力"]
[null,"認定有効期間",null,null,null,null,null,null,null,"（必須）",null,null,"2025-04-01",null,null,null,null,null,null,null,null,null,null,null,null,null,"※認定後入力"]
[null,"取消日",null,null,null,null,null,null,null,"（必須）",null,null,null,null,null,null,null,null,null,null,null,null,null,null,null,null,"※認定後入力"]
[null,"地区①",null,null,null,null,null,null,null,null,null,null,"北区"]
[null,"地区②",null,null,null,null,null,null,null,null,null,null,"内山下"]
[null,"郵便番号",null,null,null,null,null,null,null,null,null,null,7008570]
[null,"初回認定日",null,null,null,null,null,null,null,null,null,null,"2015-04-01"]
[null,"認定回数",null,null,null,null,null,null,null,null,null,null,2]
[null,"自由設定１",null,null,null,null,null,null,null,null,null,null,"自由設定１仮"]
[null,"自由設定２",null,null,null,null,null,null,null,null,null,null,"自由設定２仮"]
[null,null,null,null,null,null,null,null,null,null,null,null,null,null,null,null,null,null,null,null,null,null,null,null,null,null,null,null,null,null,null,null,null,null,null,null,"備考２",null,null,"備考２"]
[null,"調査報告業務"]
[null,"営農類型",null,null,null,null,null,null,null,"（必須）",null,null,{"$f":"IF(B64=\"\",\"※申請書の営農類型の現状欄から自動で入力されます。\",B64)","v":"準単一"}]
[null,null,null,null,null,null,null,null,null,null,null,null,{"$f":"IF(Q64=\"\",\"※申請書の営農類型の現状欄から自動で入力されます。\",Q64)","v":"稲作＋麦類作"}]
[null,"女性",null,null,null,null,null,null,null,"（必須）",null,null,"〇",null,null,null,null,null,null,null,null,null,null,null,null,null,"※該当であれば「○」"]
[null,"人・農地プラン",null,null,null,null,null,null,null,"（必須）",null,null,"〇",null,null,null,null,null,null,null,null,null,null,null,null,null,"※「○」または地区名等"]
[null,"共同申請",null,null,null,null,null,null,null,"（必須）",null,null,"親子",null,null,null,null,null,null,null,null,null,null,null,null,null,"※夫婦、親子、その他"]
[null,"個人から法人",null,null,null,null,null,null,null,"（必須）",null,null,"〇",null,null,null,null,null,null,null,null,null,null,null,null,null,"※法人で該当であれば「○」"]
[null,"法人形態",null,null,null,null,null,null,null,"（必須）",null,null,"株式会社",null,null,null,null,null,null,null,null,null,null,null,null,null,"※株式、有限、農組、合同、その他"]
[null,"組織経営体",null,null,null,null,null,null,null,"（必須）",null,null,"〇",null,null,null,null,null,null,null,null,null,null,null,null,null,"※法人で該当であれば「○」"]
[null,"特定農業法人",null,null,null,null,null,null,null,"（必須）",null,null,"〇",null,null,null,null,null,null,null,null,null,null,null,null,null,"※法人で該当であれば「○」"]
[null,"地帯区分",null,null,null,null,null,null,null,null,null,null,"平地"]
[null,"自由設定３",null,null,null,null,null,null,null,null,null,null,"自由設定３仮"]
[null,"自由設定４",null,null,null,null,null,null,null,null,null,null,"自由設定４仮"]
[null,"自由設定５",null,null,null,null,null,null,null,null,null,null,"自由設定５仮"]
[]
[null,"農業経営改善計画認定申請書　（",null,null,null,null,null,null,null,null,null,null,null,null,null,null,null,null,null,null,null,null,null,null,null,null,null,null,null,null,null,null,null,null,null,"再認定",null,null,"）"]
[null,null,null,null,null,null,null,null,null,null,null,null,null,null,null,null,null,null,null,null,null,null,null,null,null,null,null,null,null,null,null,null,null,null,null,null,null,null,null,null,null,null,null,"（申請日）",null,null,null,null,"2020-04-01"]
[null,"〇",null,{"$f":"IF(M3=\"\",\"\",IF(M3=\"農林水産省\",\"農林水産大臣\",IF(M3=\"岡山県\",\"岡山県知事\",M3&\"長\")))","v":"岡山県知事"},null,null,null,null,null,null,null,null,"殿",null,null,"申請者",null,"住所",null,null,null,null,"岡山県岡山市北区内山下2-4-6",null,null,null,null,null,null,null,null,null,null,null,null,null,null,null,null,null,null,null,null,"連絡先",null,null,"電話",null,862267420]
[null,null,null,null,null,null,null,null,null,null,null,null,null,null,null,null,null,null,null,null,null,null,null,null,null,null,null,null,null,null,null,null,null,null,null,null,null,null,null,null,null,null,null,null,null,null,"携帯",null,0]
[null,null,null,null,null,null,null,null,null,null,null,null,null,null,null,null,null,"フリガナ",null,null,null,null,"ニンテイノウギョウシャデータベースカブシキガイシャ",null,null,null,null,null,null,null,null,null,null,null,null,null,null,null,"フリガナ",null,null,null,null,"オカヤマ　ニンイチロウ"]
[null,null,null,null,null,null,null,null,null,null,null,null,null,null,null,null,null,"個人・法人名",null,null,null,null,"認定農業者経営改善計画書ＤＢ株式会社",null,null,null,null,null,null,null,null,null,null,null,null,null,null,null,"代表者氏名\n（法人のみ）",null,null,null,null,"岡山　認一郎"]
[null,null,null,null,null,null,null,null,null,null,null,null,null,null,null,null,null,"生年月日",null,null,null,null,"1989-04-01",null,null,null,null,null,null,null,null,null,"生（",null,31,null,"歳）",null,"法人番号\n（法人のみ）",null,null,null,null,0]
[null,null,null,null,null,null,null,null,null,null,null,null,null,null,null,null,null,"設立年月日\n（法人のみ）",null,null,null,null,"2015-04-01",null,null,null,null,null,null,null,null,null,"設立"]
[null,null,null,null,null,null,null,null,null,null,null,null,null,null,null,null,null,"フリガナ",null,null,null,null,"オカヤマ　ニンジロウ"]
[null,null,null,null,null,null,null,null,null,null,null,null,null,null,null,null,null,"個人名",null,null,null,null,"岡山　認二郎"]
[null,null,null,null,null,null,null,null,null,null,null,null,null,null,null,null,null,"生年月日",null,null,null,null,"1991-04-01",null,null,null,null,null,null,null,null,null,"生（",null,29,null,"歳）"]
[null,null,null,null,null,null,null,null,null,null,null,null,null,null,null,null,null,"フリガナ",null,null,null,null,"オカヤマ　ニンサブロウ"]
[null,null,null,null,null,null,null,null,null,null,null,null,null,null,null,null,null,"個人名",null,null,null,null,"岡山　認三郎"]
[null,null,null,null,null,null,null,null,null,null,null,null,null,null,null,null,null,"生年月日",null,null,null,null,"1993-04-01",null,null,null,null,null,null,null,null,null,"生（",null,27,null,"歳）"]
[null,null,null,null,null,null,null,null,null,null,null,null,null,null,null,null,null,"フリガナ",null,null,null,null,"オカヤマ　ニンタロウ"]
[null,null,null,null,null,null,null,null,null,null,null,null,null,null,null,null,null,"個人名",null,null,null,null,"岡山　認太郎"]
[null,null,null,null,null,null,null,null,null,null,null,null,null,null,null,null,null,"生年月日",null,null,null,null,"1959-04-01",null,null,null,null,null,null,null,null,null,"生（",null,61,null,"歳）"]
[null,null,null,null,null,null,null,null,null,null,null,null,null,null,null,null,null,"フリガナ",null,null,null,null,"オカヤマ　ニンコ"]
[null,null,null,null,null,null,null,null,null,null,null,null,null,null,null,null,null,"個人名",null,null,null,null,"岡山　認子"]
[null,null,null,null,null,null,null,null,null,null,null,null,null,null,null,null,null,"生年月日",null,null,null,null,"1961-04-01",null,null,null,null,null,null,null,null,null,"生（",null,59,null,"歳）"]
[]
[null,{"$f":"\"  農業経営基盤強化促進法（昭和５５年法律第６５号）第\"&IF(AJ38=\"変更\",\"１３\",\"１２\")&\"条第１項の規定に基づき、次の農業経営改善計画の認定を申請します。\"","v":"  農業経営基盤強化促進法（昭和５５年法律第６５号）第１２条第１項の規定に基づき、次の農業経営改善計画の認定を申請します。"}]
[null,"農　業　経　営　改　善　計　画"]
[null,"①　農業経営体の営農活動の現状及び目標"]
[null,"（１）営農類型"]
[null,"現　　　状",null,null,null,null,null,null,null,null,null,null,null,null,null,null,null,null,null,null,null,null,null,null,null,null,null,null,null,null,null,"目標（",null,null,null,null,null,null,null,null,null,null,null,null,null,2020,null,null,"年）"]
[null,"準単一",null,null,null,null,null,null,null,null,null,null,null,null,null,null,"稲作＋麦類作",null,null,null,null,null,null,null,null,null,null,null,null,null,null,"複合",null,null,null,null,null,null,null,null,null,null,null,null,null,null,"複合"]
[null,"（２）農業経営の現状及びその改善に関する目標"]
[null,null,null,null,null,null,null,null,null,null,null,null,"現状",null,null,null,null,null,null,null,{"$f":"\"目標（\"&IF(AT63=\"\",\"    \",AT63)&\"年）\"","v":"目標（2020年）"},null,null,null,null,null,null,null,null,null,null,null,null,null,null,null,null,null,null,"現状",null,null,null,null,null,null,null,{"$f":"\"目標（\"&IF(AT63=\"\",\"    \",AT63)&\"年）\"","v":"目標（2020年）"},null,null,null,null,null,null,null,"主たる\n従事者\nの人数",null,null,1,null,"人"]
[null,"年間所得",null,null,null,null,null,null,null,null,null,null,300,null,null,null,null,null,"万円",null,400,null,null,null,null,null,"万円",null,"年間労働時間",null,null,null,null,null,null,null,null,null,null,2000,null,null,null,null,null,"時間",null,1900,null,null,null,null,null,"時間"]
[null,null,null,"主たる従事者１人\n当たりの年間所得",null,null,null,null,null,null,null,null,300,null,null,null,null,null,"万円",null,400,null,null,null,null,null,"万円",null,null,null,"主たる従事者１人\n当たりの年間労働時間",null,null,null,null,null,null,null,null,2000,null,null,null,null,null,"時間",null,1900,null,null,null,null,null,"時間"]
[]
[null,"②  農業経営の規模拡大に関する現状及び目標"]
[null,"（１）生産",null,null,null,null,null,null,null,null,null,null,null,null,null,null,null,null,null,null,null,null,null,null,null,null,null,null,null,null,null,null,null,null,null,null,null,null,null,null,null,null,null,null,null,"（２）農畜産物の加工・販売その他の\n　関連・附帯事業（売上げ）"]
[null,"作目・部門名\n（耕　　種）",null,null,null,null,null,"現　　状",null,null,null,null,null,null,null,{"$f":"\"目標（\"&IF(AT63=\"\",\"    \",AT63)&\"年）\"","v":"目標（2020年）"},null,null,null,null,null,null,null,"作目・部門名\n（畜　　産）",null,null,null,null,null,"現　　状",null,null,null,null,null,null,null,{"$f":"\"目標（\"&IF(AT63=\"\",\"    \",AT63)&\"年）\"","v":"目標（2020年）"}]
[null,null,null,null,null,null,null,"作付面積",null,null,null,"生産量",null,null,null,"作付面積",null,null,null,"生産量",null,null,null,null,null,null,null,null,null,"飼養頭数\n（頭、羽）",null,null,null,"生産量",null,null,null,"飼養頭数\n（頭、羽）",null,null,null,"生産量",null,null,null,"事　業　内　容",null,null,null,null,null,"現　　状",null,null,null,null,{"$f":"\"目標（\"&IF(AT63=\"\",\"    \",AT63)&\"年）\"","v":"目標（2020年）"}]
[null,"水稲（あきたこまち）",null,null,null,null,null,300,null,null,"a",12000,null,null,"kg",300,null,null,"a",15000,null,null,"kg","肉用牛（黒毛和種繁殖）",null,null,null,null,null,0,null,null,"頭",0,null,null,"kg",20,null,null,"頭",15,null,null,"頭","農作業受託",null,null,null,null,null,100,null,null,"万円",null,1000,null,null,"万円"]
[null,"水稲（コシヒカリ）",null,null,null,null,null,300,null,null,"a",12000,null,null,"kg",300,null,null,"a",15000,null,null,"kg","肉用牛（黒毛和種肥育）",null,null,null,null,null,0,null,null,"頭",0,null,null,"kg",50,null,null,"頭",15000,null,null,"kg","農産加工（もち）",null,null,null,null,null,0,null,null,"万円",null,100,null,null,"万円"]
[null,"水稲（きぬむすめ）",null,null,null,null,null,300,null,null,"a",12000,null,null,"kg",300,null,null,"a",15000,null,null,"kg","豚（おかやま黒豚）",null,null,null,null,null,0,null,null,"頭",0,null,null,"kg",50,null,null,"頭",60000,null,null,"kg","農産加工（みそ）",null,null,null,null,null,0,null,null,"万円",null,100,null,null,"万円"]
[null,"水稲（ヒノヒカリ）",null,null,null,null,null,300,null,null,"a",12000,null,null,"kg",300,null,null,"a",15000,null,null,"kg","鶏（ブロイラー）",null,null,null,null,null,0,null,null,"羽",0,null,null,"kg",20000,null,null,"羽",48000,null,null,"kg","農産加工（豆腐）",null,null,null,null,null,0,null,null,"万円",null,100,null,null,"万円"]
[null,"水稲（朝日）",null,null,null,null,null,300,null,null,"a",12000,null,null,"kg",300,null,null,"a",15000,null,null,"kg",null,null,null,null,null,null,null,null,null,null,null,null,null,null,null,null,null,null,null,null,null,null,"農産加工（ジャム）",null,null,null,null,null,0,null,null,"万円",null,100,null,null,"万円"]
[null,"水稲（アケボノ）",null,null,null,null,null,300,null,null,"a",12000,null,null,"kg",300,null,null,"a",15000,null,null,"kg",null,null,null,null,null,null,null,null,null,null,null,null,null,null,null,null,null,null,null,null,null,null,"農家民宿",null,null,null,null,null,0,null,null,"万円",null,100,null,null,"万円"]
[null,"水稲（雄町）",null,null,null,null,null,300,null,null,"a",9000,null,null,"kg",300,null,null,"a",12000,null,null,"kg",null,null,null,null,null,null,null,null,null,null,null,null,null,null,null,null,null,null,null,null,null,null,"農家レストラン",null,null,null,null,null,0,null,null,"万円",null,1000,null,null,"万円"]
[null,"麦類（ミハルゴールド）",null,null,null,null,null,300,null,null,"a",9000,null,null,"kg",300,null,null,"a",12000,null,null,"kg",null,null,null,null,null,null,null,null,null,null,null,null,null,null,null,null,null,null,null,null,null,null,"観光農園",null,null,null,null,null,0,null,null,"万円",null,1000,null,null,"万円"]
[null,"麦類（スカイゴールデン）",null,null,null,null,null,300,null,null,"a",9000,null,null,"kg",300,null,null,"a",12000,null,null,"kg",null,null,null,null,null,null,null,null,null,null,null,null,null,null,null,null,null,null,null,null,null,null,null,null,null,null,null,null,null,null,null,"万円",null,null,null,null,"万円"]
[null,"麦類（キラリモチ）",null,null,null,null,null,0,null,null,"a",0,null,null,"kg",100,null,null,"a",3000,null,null,"kg",null,null,null,null,null,null,null,null,null,null,null,null,null,null,null,null,null,null,null,null,null,null,null,null,null,null,null,null,null,null,null,"万円",null,null,null,null,"万円"]
[null,"豆類（サチユタカ）",null,null,null,null,null,0,null,null,"a",0,null,null,"kg",100,null,null,"a",1200,null,null,"kg",null,null,null,null,null,null,null,null,null,null,null,null,null,null,null,null,null,null,null,null,null,null,null,null,null,null,null,null,null,null,null,"万円",null,null,null,null,"万円"]
[null,"豆類（岡山系統１号）",null,null,null,null,null,0,null,null,"a",0,null,null,"kg",100,null,null,"a",1500,null,null,"kg",null,null,null,null,null,null,null,null,null,null,null,null,null,null,null,null,null,null,null,null,null,null,null,null,null,null,null,null,null,null,null,"万円",null,null,null,null,"万円"]
[null,"桃（さきがけはくとう）",null,null,null,null,null,0,null,null,"a",0,null,null,"kg",20,null,null,"a",4000,null,null,"kg",null,null,null,null,null,null,null,null,null,null,null,null,null,null,null,null,null,null,null,null,null,null,null,null,null,null,null,null,null,null,null,"万円",null,null,null,null,"万円"]
[null,"桃（清水白桃）",null,null,null,null,null,0,null,null,"a",0,null,null,"kg",20,null,null,"a",4000,null,null,"kg",null,null,null,null,null,null,null,null,null,null,null,null,null,null,null,null,null,null,null,null,null,null,null,null,null,null,null,null,null,null,null,"万円",null,null,null,null,"万円"]
[null,"桃（おかやま夢白桃）",null,null,null,null,null,0,null,null,"a",0,null,null,"kg",20,null,null,"a",4000,null,null,"kg",null,null,null,null,null,null,null,null,null,null,null,null,null,null,null,null,null,null,null,null,null,null,null,null,null,null,null,null,null,null,null,"万円",null,null,null,null,"万円"]
[null,"桃（白皇）",null,null,null,null,null,0,null,null,"a",0,null,null,"kg",20,null,null,"a",4000,null,null,"kg",null,null,null,null,null,null,null,null,null,null,null,null,null,null,null,null,null,null,null,null,null,null,null,null,null,null,null,null,null,null,null,"万円",null,null,null,null,"万円"]
[null,"桃（白露）",null,null,null,null,null,0,null,null,"a",0,null,null,"kg",20,null,null,"a",4000,null,null,"kg",null,null,null,null,null,null,null,null,null,null,null,null,null,null,null,null,null,null,null,null,null,null,null,null,null,null,null,null,null,null,null,"万円",null,null,null,null,"万円"]
[null,"ブドウ（ピオーネ）",null,null,null,null,null,0,null,null,"a",0,null,null,"kg",20,null,null,"a",3000,null,null,"kg",null,null,null,null,null,null,null,null,null,null,null,null,null,null,null,null,null,null,null,null,null,null,null,null,null,null,null,null,null,null,null,"万円",null,null,null,null,"万円"]
[null,"ブドウ（オーロラブラック）",null,null,null,null,null,0,null,null,"a",0,null,null,"kg",20,null,null,"a",3000,null,null,"kg",null,null,null,null,null,null,null,null,null,null,null,null,null,null,null,null,null,null,null,null,null,null,null,null,null,null,null,null,null,null,null,"万円",null,null,null,null,"万円"]
[null,"ブドウ（シャインマスカット）",null,null,null,null,null,0,null,null,"a",0,null,null,"kg",20,null,null,"a",3000,null,null,"kg",null,null,null,null,null,null,null,null,null,null,null,null,null,null,null,null,null,null,null,null,null,null,null,null,null,null,null,null,null,null,null,"万円",null,null,null,null,"万円"]
[null,"ブドウ（紫苑）",null,null,null,null,null,0,null,null,"a",0,null,null,"kg",20,null,null,"a",3000,null,null,"kg",null,null,null,null,null,null,null,null,null,null,null,null,null,null,null,null,null,null,null,null,null,null,null,null,null,null,null,null,null,null,null,"万円",null,null,null,null,"万円"]
[null,"いちご（おいＣベリー）",null,null,null,null,null,0,null,null,"a",0,null,null,"kg",20,null,null,"a",10000,null,null,"kg",null,null,null,null,null,null,null,null,null,null,null,null,null,null,null,null,null,null,null,null,null,null,null,null,null,null,null,null,null,null,null,"万円",null,null,null,null,"万円"]
[null,"えだまめ（岡山SYB1号）",null,null,null,null,null,0,null,null,"a",0,null,null,"kg",50,null,null,"a",2500,null,null,"kg",null,null,null,null,null,null,null,null,null,null,null,null,null,null,null,null,null,null,null,null,null,null,null,null,null,null,null,null,null,null,null,"万円",null,null,null,null,"万円"]
[null,"たまねぎ（加工用）",null,null,null,null,null,0,null,null,"a",0,null,null,"kg",50,null,null,"a",25000,null,null,"kg",null,null,null,null,null,null,null,null,null,null,null,null,null,null,null,null,null,null,null,null,null,null,null,null,null,null,null,null,null,null,null,"万円",null,null,null,null,"万円"]
[]
[null,"（３）農用地及び農業生産施設"]
[null,"ア　農用地",null,null,null,null,null,null,null,null,null,null,null,null,null,null,null,null,null,null,null,null,null,null,null,null,null,null,null,null,null,"イ　農業生産施設"]
[null,"区　分",null,null,null,"所在地",null,null,null,null,null,null,null,"地　目",null,null,null,"現　　状",null,null,null,null,null,null,{"$f":"\"目標（\"&IF(AT63=\"\",\"    \",AT63)&\"年）\"","v":"目標（2020年）"},null,null,null,null,null,null,"種　　別",null,null,null,null,null,"所在地",null,null,null,null,null,null,null,"規　　模"]
[null,null,null,null,null,"都道府県名",null,null,null,"市町村名",null,null,null,null,null,null,null,null,null,null,null,null,null,null,null,null,null,null,null,null,null,null,null,null,null,null,null,"都道府県名",null,null,null,"市町村名",null,null,null,"現　　状",null,null,null,null,null,null,null,{"$f":"\"目標（\"&IF(AT63=\"\",\"    \",AT63)&\"年）\"","v":"目標（2020年）"}]
[null,null,null,null,null,null,null,null,null,null,null,null,null,null,null,null,null,null,null,null,null,null,null,null,null,null,null,null,null,null,null,null,null,null,null,null,null,null,null,null,null,null,null,null,null,"棟",null,null,null,"㎡",null,null,null,"棟",null,null,null,"㎡"]
[null,"所有地",null,null,null,"岡山県",null,null,null,"岡山市",null,null,null,"田",null,null,null,500,null,null,null,null,"a",null,700,null,null,null,null,"a",null,"パイプハウス",null,null,null,null,null,"岡山県",null,null,null,"岡山市",null,null,null,1,null,null,null,1000,null,null,null,2,null,null,null,2000]
[null,null,null,null,null,"岡山県",null,null,null,"倉敷市",null,null,null,"田",null,null,null,200,null,null,null,null,"a",null,200,null,null,null,null,"a",null,"牛舎",null,null,null,null,null,"岡山県",null,null,null,"岡山市",null,null,null,0,null,null,null,0,null,null,null,1,null,null,null,500]
[null,null,null,null,null,null,null,null,null,null,null,null,null,null,null,null,null,null,null,null,null,null,null,null,null,null,null,null,null,null,null,"豚舎",null,null,null,null,null,"岡山県",null,null,null,"岡山市",null,null,null,0,null,null,null,0,null,null,null,1,null,null,null,1000]
[null,null,null,null,null,null,null,null,null,null,null,null,null,null,null,null,null,null,null,null,null,null,null,null,null,null,null,null,null,null,null,"鶏舎",null,null,null,null,null,"岡山県",null,null,null,"岡山市",null,null,null,0,null,null,null,0,null,null,null,1,null,null,null,2000]
[null,null,null,null,null,null,null,null,null,null,null,null,null,null,null,null,null,null,null,null,null,null,null,null,null,null,null,null,null,null,null,"加工場",null,null,null,null,null,"岡山県",null,null,null,"岡山市",null,null,null,0,null,null,null,0,null,null,null,1,null,null,null,50]
[null,null,null,null,null,null,null,null,null,null,null,null,null,null,null,null,null,null,null,null,null,null,null,null,null,null,null,null,null,null,null,"宿泊施設",null,null,null,null,null,"岡山県",null,null,null,"岡山市",null,null,null,0,null,null,null,0,null,null,null,1,null,null,null,1000]
[null,null,null,null,null,null,null,null,null,null,null,null,null,null,null,null,null,null,null,null,null,null,null,null,null,null,null,null,null,null,null,"レストラン",null,null,null,null,null,"岡山県",null,null,null,"岡山市",null,null,null,0,null,null,null,0,null,null,null,1,null,null,null,100]
[]
[]
[]
[null,"借入地",null,null,null,"岡山県",null,null,null,"岡山市",null,null,null,"田",null,null,null,1500,null,null,null,null,"a",null,1700,null,null,null,null,"a"]
[null,null,null,null,null,"岡山県",null,null,null,"倉敷市",null,null,null,"田",null,null,null,500,null,null,null,null,"a",null,500,null,null,null,null,"a"]
[null,null,null,null,null,"岡山県",null,null,null,"岡山市",null,null,null,"畑",null,null,null,0,null,null,null,null,"a",null,120,null,null,null,null,"a"]
[null,null,null,null,null,"岡山県",null,null,null,"岡山市",null,null,null,"樹園地",null,null,null,0,null,null,null,null,"a",null,200,null,null,null,null,"a"]
[null,null,null,null,null,"岡山県",null,null,null,"倉敷市",null,null,null,"樹園地",null,null,null,0,null,null,null,null,"a",null,80,null,null,null,null,"a"]
[]
[]
[]
[]
[]
[null,"その他"]
[]
[]
[]
[]
[]
[]
[]
[]
[]
[null,"経 営 面 積 合 計",null,null,null,null,null,null,null,null,null,null,null,null,null,null,null,2700,null,null,null,null,"a",null,3500,null,null,null,null,"a",null,"経 営 面 積 合 計"]
[]
[null,"③　生産方式の合理化に関する現状と目標・措置",null,null,null,null,null,null,null,null,null,null,null,null,null,null,null,null,null,null,null,null,null,null,null,null,null,null,null,null,null,"④　経営管理の合理化に関する現状と目標・措置"]
[null,"（現状）",null,null,null,null,null,null,null,null,null,null,null,null,null,null,null,null,null,null,null,null,null,null,null,null,null,null,null,null,null,"（現状）"]
[null,null,null,null,null,null,null,null,null,null,null,null,null,null,null,null,null,null,null,null,null,null,null,null,null,null,null,null,null,null,null,"・白色申告\n・作業分担されていない"]
[null,"（目標・措置）",null,null,null,null,null,null,null,null,null,null,null,null,null,null,null,null,null,null,null,null,null,null,null,null,null,null,null,null,null,"（目標・措置）"]
[null,null,null,null,null,null,null,null,null,null,null,null,null,null,null,null,null,null,null,null,null,null,null,null,null,null,null,null,null,null,null,"・青色申告\n・作業の分担化で効率の良い経営\n・パソコン等を利用した販売のＰＲ"]
[null,"⑤　農業従事の態様の改善に関する現状と目標・措置",null,null,null,null,null,null,null,null,null,null,null,null,null,null,null,null,null,null,null,null,null,null,null,null,null,null,null,null,null,"⑥　その他の農業経営の改善に関する現状と目標・措置"]
[null,"（現状）",null,null,null,null,null,null,null,null,null,null,null,null,null,null,null,null,null,null,null,null,null,null,null,null,null,null,null,null,null,"（現状）"]
[null,"・家族のみで従事\n・給与・休日を定めておらず、不定期休"]
[null,"（目標・措置）",null,null,null,null,null,null,null,null,null,null,null,null,null,null,null,null,null,null,null,null,null,null,null,null,null,null,null,null,null,"（目標・措置）"]
[null,"・繁忙期の臨時雇用者の採用\n・給与・休日制の導入"]
[]
[null,"（参考）経営の構成"]
[null,"（１）構成員・役員",null,null,null,null,null,null,null,null,null,null,null,null,null,null,null,null,null,null,null,null,null,null,null,null,null,null,null,null,null,null,null,null,null,"（２）雇  用  者"]
[null,"氏    名\n（法人経営にあっては役員の氏名）",null,null,null,null,null,"年齢",null,"性別",null,"代表者との\n続柄（法人\n経営にあっ\nては役職）",null,null,null,"現　　状",null,null,null,null,null,null,null,null,null,{"$f":"\"目標（\"&IF(AT63=\"\",\"    \",AT63)&\"年）\"","v":"目標（2020年）"},null,null,null,null,null,null,null,null,null,"常時雇（年間）",null,null,null,null,null,"実 人 数",null,null,null,"現　状",null,null,null,1,null,null,"人","見通し",null,null,null,2,null,null,"人"]
[null,null,null,null,null,null,null,null,null,null,null,null,null,null,null,"担当業務",null,null,null,"主たる\n従事者",null,"年間農業\n従事時間",null,null,null,"担当業務",null,null,null,"主たる\n従事者",null,"年間農業\n従事時間",null,null,null,"臨時雇（年間）",null,null,null,null,null,"実 人 数",null,null,null,"現　状",null,null,null,2,null,null,"人","見通し",null,null,null,4,null,null,"人"]
[null,null,null,null,null,null,null,null,null,null,null,null,null,null,null,null,null,null,null,null,null,null,null,null,null,null,null,null,null,null,null,null,null,null,null,null,null,null,null,null,null,"延べ人数",null,null,null,"現　状",null,null,null,50,null,null,"人","見通し",null,null,null,100,null,null,"人"]
[null,null,null,null,null,null,null,null,null,null,null,"(代表者）"]
[null,"岡山　認一郎",null,null,null,null,null,31,null,"男",null,"本人",null,null,null,"農作業全般",null,null,null,"○",null,2000,null,null,null,"経営管理",null,null,null,"○",null,1900]
[null,"岡山　認二郎",null,null,null,null,null,29,null,"男",null,"弟",null,null,null,"農作業全般",null,null,null,null,null,1000,null,null,null,"農作業全般",null,null,null,"○",null,1900]
[null,"岡山　認三郎",null,null,null,null,null,27,null,"男",null,"弟",null,null,null,"農作業全般",null,null,null,null,null,1000,null,null,null,"農作業全般",null,null,null,null,null,1900]
[null,"岡山　認太郎",null,null,null,null,null,61,null,"男",null,"父",null,null,null,"農作業全般",null,null,null,null,null,1000,null,null,null,"果樹",null,null,null,null,null,500]
[null,"岡山　認子",null,null,null,null,null,59,null,"女",null,"母",null,null,null,"農作業全般",null,null,null,null,null,1000,null,null,null,"加工・宿泊・レストラン",null,null,null,null,null,500]
[null,"倉敷　定助",null,null,null,null,null,59,null,"男",null,"叔父",null,null,null,"農作業全般",null,null,null,null,null,500,null,null,null,"農作業全般",null,null,null,null,null,500]
[null,"倉敷　定美",null,null,null,null,null,57,null,"女",null,"叔母",null,null,null,"農作業全般",null,null,null,null,null,500,null,null,null,"加工・宿泊・レストラン",null,null,null,null,null,500]
[null,"倉敷　定一郎",null,null,null,null,null,30,null,"男",null,"従弟",null,null,null,"農作業全般",null,null,null,null,null,500,null,null,null,"野菜",null,null,null,null,null,1900]
[null,"倉敷　定二郎",null,null,null,null,null,28,null,"男",null,"従弟",null,null,null,"農作業全般",null,null,null,null,null,500,null,null,null,"畜産",null,null,null,null,null,1900]
[null,"倉敷　定三郎",null,null,null,null,null,26,null,"男",null,"従弟",null,null,null,"農作業全般",null,null,null,null,null,500,null,null,null,"畜産",null,null,null,null,null,1900]
[]
[null,"（別紙）生産方式の合理化に係る農業用機械等の取得計画"]
[null,"農業用機械等の名称",null,null,null,null,null,null,null,null,null,null,null,null,null,null,null,"現状",null,null,null,null,null,null,"目標",null,null,null,null,null,null,"農業用機械等の名称",null,null,null,null,null,null,null,null,null,null,null,null,null,null,null,"現状",null,null,null,null,null,null,"目標"]
[null,"トラクター20ps",null,null,null,null,null,null,null,null,null,null,null,null,null,null,null,"１台",null,null,null,null,null,null,"２台",null,null,null,null,null,null,"スピードスプレーヤー600L",null,null,null,null,null,null,null,null,null,null,null,null,null,null,null,"無し",null,null,null,null,null,null,"１台"]
[null,"トラクター30ps",null,null,null,null,null,null,null,null,null,null,null,null,null,null,null,"１台",null,null,null,null,null,null,"２台",null,null,null,null,null,null,"マニュアスプレッダー牽引式",null,null,null,null,null,null,null,null,null,null,null,null,null,null,null,"無し",null,null,null,null,null,null,"１台"]
[null,"トラクター40ps",null,null,null,null,null,null,null,null,null,null,null,null,null,null,null,"１台",null,null,null,null,null,null,"１台",null,null,null,null,null,null,"管理機6ps",null,null,null,null,null,null,null,null,null,null,null,null,null,null,null,"１台",null,null,null,null,null,null,"３台"]
[null,"トラクター60psセミクローラー",null,null,null,null,null,null,null,null,null,null,null,null,null,null,null,"１台",null,null,null,null,null,null,"１台",null,null,null,null,null,null,"運搬車",null,null,null,null,null,null,null,null,null,null,null,null,null,null,null,"無し",null,null,null,null,null,null,"４台"]
[null,"トラクター80psクローラー",null,null,null,null,null,null,null,null,null,null,null,null,null,null,null,"１台",null,null,null,null,null,null,"１台",null,null,null,null,null,null,"乾燥調製施設",null,null,null,null,null,null,null,null,null,null,null,null,null,null,null,"1,500俵",null,null,null,null,null,null,"2,000俵"]
[null,"トラクター100psクローラー",null,null,null,null,null,null,null,null,null,null,null,null,null,null,null,"無し",null,null,null,null,null,null,"１台",null,null,null,null,null,null,"色彩選別機",null,null,null,null,null,null,null,null,null,null,null,null,null,null,null,"無し",null,null,null,null,null,null,"１台"]
[null,"田植機４条",null,null,null,null,null,null,null,null,null,null,null,null,null,null,null,"１台",null,null,null,null,null,null,"無し",null,null,null,null,null,null,"飼料給餌車（肉用牛）",null,null,null,null,null,null,null,null,null,null,null,null,null,null,null,"無し",null,null,null,null,null,null,"１台"]
[null,"田植機６条",null,null,null,null,null,null,null,null,null,null,null,null,null,null,null,"１台",null,null,null,null,null,null,"１台",null,null,null,null,null,null,"自動給餌機（肉用牛）",null,null,null,null,null,null,null,null,null,null,null,null,null,null,null,"無し",null,null,null,null,null,null,"１台"]
[null,"田植機８条",null,null,null,null,null,null,null,null,null,null,null,null,null,null,null,"無し",null,null,null,null,null,null,"１台",null,null,null,null,null,null,"自動給餌機（豚）",null,null,null,null,null,null,null,null,null,null,null,null,null,null,null,"無し",null,null,null,null,null,null,"１台"]
[null,"コンバイン４条",null,null,null,null,null,null,null,null,null,null,null,null,null,null,null,"１台",null,null,null,null,null,null,"無し",null,null,null,null,null,null,"自動給餌機（鶏）",null,null,null,null,null,null,null,null,null,null,null,null,null,null,null,"無し",null,null,null,null,null,null,"４台"]
[null,"コンバイン５条",null,null,null,null,null,null,null,null,null,null,null,null,null,null,null,"１台",null,null,null,null,null,null,"１台",null,null,null,null,null,null,"ホイールローダー",null,null,null,null,null,null,null,null,null,null,null,null,null,null,null,"無し",null,null,null,null,null,null,"１台"]
[null,"コンバイン６条",null,null,null,null,null,null,null,null,null,null,null,null,null,null,null,"無し",null,null,null,null,null,null,"１台",null,null,null,null,null,null,"バックホー",null,null,null,null,null,null,null,null,null,null,null,null,null,null,null,"無し",null,null,null,null,null,null,"１台"]
[null,"乗用管理機20ps",null,null,null,null,null,null,null,null,null,null,null,null,null,null,null,"１台",null,null,null,null,null,null,"１台",null,null,null,null,null,null,"乗用草刈機",null,null,null,null,null,null,null,null,null,null,null,null,null,null,null,"１台",null,null,null,null,null,null,"２台"]
[null,"動力散布機",null,null,null,null,null,null,null,null,null,null,null,null,null,null,null,"２台",null,null,null,null,null,null,"無し",null,null,null,null,null,null,"トラック2t",null,null,null,null,null,null,null,null,null,null,null,null,null,null,null,"無し",null,null,null,null,null,null,"１台"]
[null,"防除用ドローン",null,null,null,null,null,null,null,null,null,null,null,null,null,null,null,"無し",null,null,null,null,null,null,"２台",null,null,null,null,null,null,"軽四トラック",null,null,null,null,null,null,null,null,null,null,null,null,null,null,null,"１台",null,null,null,null,null,null,"２台"]
[]
[null,"制度資金利用の有無",null,null,null,null,null,null,null,null,null,null,null,null,null,null,null,null,null,null,null,"有",null,null,null,"有の場合"]
[null,null,null,null,null,null,null,null,null,null,null,null,null,null,null,null,null,null,null,null,null,null,null,null,null,"ア　予定年度・資金・使途"]
[null,null,null,null,null,null,null,null,null,null,null,null,null,null,null,null,null,null,null,null,null,null,null,null,null,"令和４年度、スーパーＬ資金、トラクターの購入。"]
[null,null,null,null,null,null,null,null,null,null,null,null,null,null,null,null,null,null,null,null,null,null,null,null,null,"イ　資産及び負債の現状"]
[null,null,null,null,null,null,null,null,null,null,null,null,null,null,null,null,null,null,null,null,null,null,null,null,null,"特に問題無し。"]
[null,null,null,null,null,null,null,null,null,null,null,null,null,null,null,null,null,null,null,null,null,null,null,null,null,"ウ　今後の資金需要等"]
[null,null,null,null,null,null,null,null,null,null,null,null,null,null,null,null,null,null,null,null,null,null,null,null,null,"特に無し。"]
[]
[null,"備考"]
[null,"　「農業用機械等の名称」欄には、生産方式の合理化のために、取得する予定の農業用の機械及び装置、器具及び備品、建物及びその附属設備、構築物並びにソフトウェア等を記載する。"]
[null,"　（②「（３）農用地及び農業生産施設」に記載しているものは記載不要。）"]
[]
[null,"別紙　農業経営の規模拡大に関する現状及び目標"]
[null,"（１）生産"]
[null,"作目・\n部門名\n（耕　種）",null,null,null,"現　　状",null,null,null,null,null,null,null,{"$f":"\"目標（\"&IF(AT63=\"\",\"    \",AT63)&\"年）\"","v":"目標（2020年）"},null,null,null,null,null,null,null,"作目・\n部門名\n（耕　種）",null,null,null,"現　　状",null,null,null,null,null,null,null,{"$f":"\"目標（\"&IF(AT63=\"\",\"    \",AT63)&\"年）\"","v":"目標（2020年）"},null,null,null,null,null,null,null,"作目・\n部門名\n（耕　種）",null,null,null,"現　　状",null,null,null,null,null,null,null,{"$f":"\"目標（\"&IF(AT63=\"\",\"    \",AT63)&\"年）\"","v":"目標（2020年）"}]
[null,null,null,null,null,"作付面積",null,null,null,"生産量",null,null,null,"作付面積",null,null,null,"生産量",null,null,null,null,null,null,null,"作付面積",null,null,null,"生産量",null,null,null,"作付面積",null,null,null,"生産量",null,null,null,null,null,null,null,"作付面積",null,null,null,"生産量",null,null,null,"作付面積",null,null,null,"生産量"]
[null,{"$f":"IF(B74=\"\",\"\",B74)","v":"水稲（あきたこまち）"},null,null,null,{"$f":"IF(H74=\"\",\"\",H74)","v":300},null,null,{"$f":"IF(K74=\"\",\"\",K74)","v":"a"},12000,null,null,{"$f":"IF(O74=\"\",\"\",O74)","v":"kg"},300,null,null,{"$f":"IF(S74=\"\",\"\",S74)","v":"a"},15000,null,null,{"$f":"IF(W74=\"\",\"\",W74)","v":"kg"},"キャベツ（加工用）",null,null,null,0,null,null,"a",0,null,null,"kg",200,null,null,"a",20000,null,null,"kg","キャベツ（加工用）",null,null,null,0,null,null,"a",0,null,null,"kg",200,null,null,"a",20000,null,null,"kg"]
[null,"水稲（コシヒカリ）",null,null,null,300,null,null,"a",12000,null,null,"kg",300,null,null,"a",15000,null,null,"kg","キャベツ（加工用）",null,null,null,0,null,null,"a",0,null,null,"kg",200,null,null,"a",20000,null,null,"kg","キャベツ（加工用）",null,null,null,0,null,null,"a",0,null,null,"kg",200,null,null,"a",20000,null,null,"kg"]
[null,"水稲（きぬむすめ）",null,null,null,300,null,null,"a",12000,null,null,"kg",300,null,null,"a",15000,null,null,"kg","キャベツ（加工用）",null,null,null,0,null,null,"a",0,null,null,"kg",200,null,null,"a",20000,null,null,"kg","キャベツ（加工用）",null,null,null,0,null,null,"a",0,null,null,"kg",200,null,null,"a",20000,null,null,"kg"]
[null,"水稲（ヒノヒカリ）",null,null,null,300,null,null,"a",12000,null,null,"kg",300,null,null,"a",15000,null,null,"kg","キャベツ（加工用）",null,null,null,0,null,null,"a",0,null,null,"kg",200,null,null,"a",20000,null,null,"kg","キャベツ（加工用）",null,null,null,0,null,null,"a",0,null,null,"kg",200,null,null,"a",20000,null,null,"kg"]
[null,"水稲（朝日）",null,null,null,300,null,null,"a",12000,null,null,"kg",300,null,null,"a",15000,null,null,"kg","キャベツ（加工用）",null,null,null,0,null,null,"a",0,null,null,"kg",200,null,null,"a",20000,null,null,"kg","キャベツ（加工用）",null,null,null,0,null,null,"a",0,null,null,"kg",200,null,null,"a",20000,null,null,"kg"]
[null,"水稲（アケボノ）",null,null,null,300,null,null,"a",12000,null,null,"kg",300,null,null,"a",15000,null,null,"kg","キャベツ（加工用）",null,null,null,0,null,null,"a",0,null,null,"kg",200,null,null,"a",20000,null,null,"kg","キャベツ（加工用）",null,null,null,0,null,null,"a",0,null,null,"kg",200,null,null,"a",20000,null,null,"kg"]
[null,"水稲（雄町）",null,null,null,300,null,null,"a",9000,null,null,"kg",300,null,null,"a",12000,null,null,"kg","キャベツ（加工用）",null,null,null,0,null,null,"a",0,null,null,"kg",200,null,null,"a",20000,null,null,"kg","キャベツ（加工用）",null,null,null,0,null,null,"a",0,null,null,"kg",200,null,null,"a",20000,null,null,"kg"]
[null,"麦類（ミハルゴールド）",null,null,null,300,null,null,"a",9000,null,null,"kg",300,null,null,"a",12000,null,null,"kg","キャベツ（加工用）",null,null,null,0,null,null,"a",0,null,null,"kg",200,null,null,"a",20000,null,null,"kg","キャベツ（加工用）",null,null,null,0,null,null,"a",0,null,null,"kg",200,null,null,"a",20000,null,null,"kg"]
[null,"麦類（スカイゴールデン）",null,null,null,300,null,null,"a",9000,null,null,"kg",300,null,null,"a",12000,null,null,"kg","キャベツ（加工用）",null,null,null,0,null,null,"a",0,null,null,"kg",200,null,null,"a",20000,null,null,"kg","キャベツ（加工用）",null,null,null,0,null,null,"a",0,null,null,"kg",200,null,null,"a",20000,null,null,"kg"]
[null,"麦類（キラリモチ）",null,null,null,0,null,null,"a",0,null,null,"kg",100,null,null,"a",3000,null,null,"kg","キャベツ（加工用）",null,null,null,0,null,null,"a",0,null,null,"kg",200,null,null,"a",20000,null,null,"kg","キャベツ（加工用）",null,null,null,0,null,null,"a",0,null,null,"kg",200,null,null,"a",20000,null,null,"kg"]
[null,"豆類（サチユタカ）",null,null,null,0,null,null,"a",0,null,null,"kg",100,null,null,"a",1200,null,null,"kg","キャベツ（加工用）",null,null,null,0,null,null,"a",0,null,null,"kg",200,null,null,"a",20000,null,null,"kg","キャベツ（加工用）",null,null,null,0,null,null,"a",0,null,null,"kg",200,null,null,"a",20000,null,null,"kg"]
[null,"豆類（岡山系統１号）",null,null,null,0,null,null,"a",0,null,null,"kg",100,null,null,"a",1500,null,null,"kg","キャベツ（加工用）",null,null,null,0,null,null,"a",0,null,null,"kg",200,null,null,"a",20000,null,null,"kg","キャベツ（加工用）",null,null,null,0,null,null,"a",0,null,null,"kg",200,null,null,"a",20000,null,null,"kg"]
[null,"桃（さきがけはくとう）",null,null,null,0,null,null,"a",0,null,null,"kg",20,null,null,"a",4000,null,null,"kg","キャベツ（加工用）",null,null,null,0,null,null,"a",0,null,null,"kg",200,null,null,"a",20000,null,null,"kg","キャベツ（加工用）",null,null,null,0,null,null,"a",0,null,null,"kg",200,null,null,"a",20000,null,null,"kg"]
[null,"桃（清水白桃）",null,null,null,0,null,null,"a",0,null,null,"kg",20,null,null,"a",4000,null,null,"kg","キャベツ（加工用）",null,null,null,0,null,null,"a",0,null,null,"kg",200,null,null,"a",20000,null,null,"kg","キャベツ（加工用）",null,null,null,0,null,null,"a",0,null,null,"kg",200,null,null,"a",20000,null,null,"kg"]
[null,"桃（おかやま夢白桃）",null,null,null,0,null,null,"a",0,null,null,"kg",20,null,null,"a",4000,null,null,"kg","キャベツ（加工用）",null,null,null,0,null,null,"a",0,null,null,"kg",200,null,null,"a",20000,null,null,"kg","キャベツ（加工用）",null,null,null,0,null,null,"a",0,null,null,"kg",200,null,null,"a",20000,null,null,"kg"]
[null,"桃（白皇）",null,null,null,0,null,null,"a",0,null,null,"kg",20,null,null,"a",4000,null,null,"kg","キャベツ（加工用）",null,null,null,0,null,null,"a",0,null,null,"kg",200,null,null,"a",20000,null,null,"kg","キャベツ（加工用）",null,null,null,0,null,null,"a",0,null,null,"kg",200,null,null,"a",20000,null,null,"kg"]
[null,"桃（白露）",null,null,null,0,null,null,"a",0,null,null,"kg",20,null,null,"a",4000,null,null,"kg","キャベツ（加工用）",null,null,null,0,null,null,"a",0,null,null,"kg",200,null,null,"a",20000,null,null,"kg","キャベツ（加工用）",null,null,null,0,null,null,"a",0,null,null,"kg",200,null,null,"a",20000,null,null,"kg"]
[null,"ブドウ（ピオーネ）",null,null,null,0,null,null,"a",0,null,null,"kg",20,null,null,"a",3000,null,null,"kg","キャベツ（加工用）",null,null,null,0,null,null,"a",0,null,null,"kg",200,null,null,"a",20000,null,null,"kg","キャベツ（加工用）",null,null,null,0,null,null,"a",0,null,null,"kg",200,null,null,"a",20000,null,null,"kg"]
[null,"ブドウ（オーロラブラック）",null,null,null,0,null,null,"a",0,null,null,"kg",20,null,null,"a",3000,null,null,"kg","キャベツ（加工用）",null,null,null,0,null,null,"a",0,null,null,"kg",200,null,null,"a",20000,null,null,"kg","キャベツ（加工用）",null,null,null,0,null,null,"a",0,null,null,"kg",200,null,null,"a",20000,null,null,"kg"]
[null,"ブドウ（シャインマスカット）",null,null,null,0,null,null,"a",0,null,null,"kg",20,null,null,"a",3000,null,null,"kg","キャベツ（加工用）",null,null,null,0,null,null,"a",0,null,null,"kg",200,null,null,"a",20000,null,null,"kg","キャベツ（加工用）",null,null,null,0,null,null,"a",0,null,null,"kg",200,null,null,"a",20000,null,null,"kg"]
[null,"ブドウ（紫苑）",null,null,null,0,null,null,"a",0,null,null,"kg",20,null,null,"a",3000,null,null,"kg","キャベツ（加工用）",null,null,null,0,null,null,"a",0,null,null,"kg",200,null,null,"a",20000,null,null,"kg","キャベツ（加工用）",null,null,null,0,null,null,"a",0,null,null,"kg",200,null,null,"a",20000,null,null,"kg"]
[null,"いちご（おいＣベリー）",null,null,null,0,null,null,"a",0,null,null,"kg",20,null,null,"a",10000,null,null,"kg","キャベツ（加工用）",null,null,null,0,null,null,"a",0,null,null,"kg",200,null,null,"a",20000,null,null,"kg","キャベツ（加工用）",null,null,null,0,null,null,"a",0,null,null,"kg",200,null,null,"a",20000,null,null,"kg"]
[null,"えだまめ（岡山SYB1号）",null,null,null,0,null,null,"a",0,null,null,"kg",50,null,null,"a",2500,null,null,"kg","キャベツ（加工用）",null,null,null,0,null,null,"a",0,null,null,"kg",200,null,null,"a",20000,null,null,"kg","キャベツ（加工用）",null,null,null,0,null,null,"a",0,null,null,"kg",200,null,null,"a",20000,null,null,"kg"]
[null,"たまねぎ（加工用）",null,null,null,0,null,null,"a",0,null,null,"kg",50,null,null,"a",25000,null,null,"kg","キャベツ（加工用）",null,null,null,0,null,null,"a",0,null,null,"kg",200,null,null,"a",20000,null,null,"kg","キャベツ（加工用）",null,null,null,0,null,null,"a",0,null,null,"kg",200,null,null,"a",20000,null,null,"kg"]
[]
[null,"別紙　農業経営の規模拡大に関する現状及び目標"]
[null,"（１）構成員・役員"]
[null,"氏    名\n（法人経営にあっては役員の氏名）",null,null,null,null,"年齢",null,"性別",null,"代表者との\n続柄（法人\n経営にあっ\nては役職）",null,null,"現　　状",null,null,null,null,null,null,null,null,{"$f":"\"目標（\"&IF(AT63=\"\",\"    \",AT63)&\"年）\"","v":"目標（2020年）"},null,null,null,null,null,null,null,null,"氏    名\n（法人経営にあっては役員の氏名）",null,null,null,null,"年齢",null,"性別",null,"代表者との\n続柄（法人\n経営にあっ\nては役職）",null,null,"現　　状",null,null,null,null,null,null,null,null,{"$f":"\"目標（\"&IF(AT63=\"\",\"    \",AT63)&\"年）\"","v":"目標（2020年）"}]
[null,null,null,null,null,null,null,null,null,null,null,null,null,"担当業務",null,null,null,"主たる\n従事者",null,"年間農業\n従事時間",null,null,"担当業務",null,null,null,"主たる\n従事者",null,"年間農業\n従事時間",null,null,null,null,null,null,null,null,null,null,null,null,null,null,"担当業務",null,null,null,"主たる\n従事者",null,"年間農業\n従事時間",null,null,"担当業務",null,null,null,"主たる\n従事者",null,"年間農業\n従事時間"]
[]
[null,null,null,null,null,null,null,null,null,null,"（代表者）"]
[null,{"$f":"IF(B153=\"\",\"\",B153)","v":"岡山　認一郎"},null,null,null,null,{"$f":"IF(H153=\"\",\"\",H153)","v":31},null,{"$f":"IF(J153=\"\",\"\",J153)","v":"男"},null,{"$f":"IF(L153=\"\",\"\",L153)","v":"本人"},null,null,{"$f":"IF(P153=\"\",\"\",P153)","v":"農作業全般"},null,null,null,{"$f":"IF(T153=\"\",\"\",T153)","v":"○"},null,{"$f":"IF(V153=\"\",\"\",V153)","v":2000},null,null,{"$f":"IF(Z153=\"\",\"\",Z153)","v":"経営管理"},null,null,null,{"$f":"IF(AD153=\"\",\"\",AD153)","v":"○"},null,{"$f":"IF(AF153=\"\",\"\",AF153)","v":1900},null,null,"倉敷　定子",null,null,null,null,24,null,"女",null,"従妹",null,null,null,null,null,null,null,null,0,null,null,"加工・宿泊・レストラン",null,null,null,null,null,1900]
[null,"岡山　認二郎",null,null,null,null,29,null,"男",null,"弟",null,null,"農作業全般",null,null,null,"",null,1000,null,null,"農作業全般",null,null,null,"○",null,1900,null,null,"倉敷　定子",null,null,null,null,24,null,"女",null,"従妹",null,null,null,null,null,null,null,null,0,null,null,"加工・宿泊・レストラン",null,null,null,null,null,1900]
[null,"岡山　認三郎",null,null,null,null,27,null,"男",null,"弟",null,null,"農作業全般",null,null,null,"",null,1000,null,null,"農作業全般",null,null,null,"",null,1900,null,null,"倉敷　定子",null,null,null,null,24,null,"女",null,"従妹",null,null,null,null,null,null,null,null,0,null,null,"加工・宿泊・レストラン",null,null,null,null,null,1900]
[null,"岡山　認太郎",null,null,null,null,61,null,"男",null,"父",null,null,"農作業全般",null,null,null,"",null,1000,null,null,"果樹",null,null,null,"",null,500,null,null,"倉敷　定子",null,null,null,null,24,null,"女",null,"従妹",null,null,null,null,null,null,null,null,0,null,null,"加工・宿泊・レストラン",null,null,null,null,null,1900]
[null,"岡山　認子",null,null,null,null,59,null,"女",null,"母",null,null,"農作業全般",null,null,null,"",null,1000,null,null,"加工・宿泊・レストラン",null,null,null,"",null,500,null,null,"倉敷　定子",null,null,null,null,24,null,"女",null,"従妹",null,null,null,null,null,null,null,null,0,null,null,"加工・宿泊・レストラン",null,null,null,null,null,1900]
[null,"倉敷　定助",null,null,null,null,59,null,"男",null,"叔父",null,null,"農作業全般",null,null,null,"",null,500,null,null,"農作業全般",null,null,null,"",null,500,null,null,"倉敷　定子",null,null,null,null,24,null,"女",null,"従妹",null,null,null,null,null,null,null,null,0,null,null,"加工・宿泊・レストラン",null,null,null,null,null,1900]
[null,"倉敷　定美",null,null,null,null,57,null,"女",null,"叔母",null,null,"農作業全般",null,null,null,"",null,500,null,null,"加工・宿泊・レストラン",null,null,null,"",null,500,null,null,"倉敷　定子",null,null,null,null,24,null,"女",null,"従妹",null,null,null,null,null,null,null,null,0,null,null,"加工・宿泊・レストラン",null,null,null,null,null,1900]
[null,"倉敷　定一郎",null,null,null,null,30,null,"男",null,"従弟",null,null,"農作業全般",null,null,null,"",null,500,null,null,"野菜",null,null,null,"",null,1900,null,null,"倉敷　定子",null,null,null,null,24,null,"女",null,"従妹",null,null,null,null,null,null,null,null,0,null,null,"加工・宿泊・レストラン",null,null,null,null,null,1900]
[null,"倉敷　定二郎",null,null,null,null,28,null,"男",null,"従弟",null,null,"農作業全般",null,null,null,"",null,500,null,null,"畜産",null,null,null,"",null,1900,null,null,"倉敷　定子",null,null,null,null,24,null,"女",null,"従妹",null,null,null,null,null,null,null,null,0,null,null,"加工・宿泊・レストラン",null,null,null,null,null,1900]
[null,"倉敷　定三郎",null,null,null,null,26,null,"男",null,"従弟",null,null,"農作業全般",null,null,null,"",null,500,null,null,"畜産",null,null,null,"",null,1900,null,null,"倉敷　定子",null,null,null,null,24,null,"女",null,"従妹",null,null,null,null,null,null,null,null,0,null,null,"加工・宿泊・レストラン",null,null,null,null,null,1900]
[null,"倉敷　定子",null,null,null,null,24,null,"女",null,"従妹",null,null,null,null,null,null,null,null,0,null,null,"加工・宿泊・レストラン",null,null,null,null,null,1900,null,null,"倉敷　定子",null,null,null,null,24,null,"女",null,"従妹",null,null,null,null,null,null,null,null,0,null,null,"加工・宿泊・レストラン",null,null,null,null,null,1900]
[null,"倉敷　定子",null,null,null,null,24,null,"女",null,"従妹",null,null,null,null,null,null,null,null,0,null,null,"加工・宿泊・レストラン",null,null,null,null,null,1900,null,null,"倉敷　定子",null,null,null,null,24,null,"女",null,"従妹",null,null,null,null,null,null,null,null,0,null,null,"加工・宿泊・レストラン",null,null,null,null,null,1900]
[null,"倉敷　定子",null,null,null,null,24,null,"女",null,"従妹",null,null,null,null,null,null,null,null,0,null,null,"加工・宿泊・レストラン",null,null,null,null,null,1900,null,null,"倉敷　定子",null,null,null,null,24,null,"女",null,"従妹",null,null,null,null,null,null,null,null,0,null,null,"加工・宿泊・レストラン",null,null,null,null,null,1900]
[null,"倉敷　定子",null,null,null,null,24,null,"女",null,"従妹",null,null,null,null,null,null,null,null,0,null,null,"加工・宿泊・レストラン",null,null,null,null,null,1900,null,null,"倉敷　定子",null,null,null,null,24,null,"女",null,"従妹",null,null,null,null,null,null,null,null,0,null,null,"加工・宿泊・レストラン",null,null,null,null,null,1900]
[null,"倉敷　定子",null,null,null,null,24,null,"女",null,"従妹",null,null,null,null,null,null,null,null,0,null,null,"加工・宿泊・レストラン",null,null,null,null,null,1900,null,null,"倉敷　定子",null,null,null,null,24,null,"女",null,"従妹",null,null,null,null,null,null,null,null,0,null,null,"加工・宿泊・レストラン",null,null,null,null,null,1900]
[null,"倉敷　定子",null,null,null,null,24,null,"女",null,"従妹",null,null,null,null,null,null,null,null,0,null,null,"加工・宿泊・レストラン",null,null,null,null,null,1900,null,null,"倉敷　定子",null,null,null,null,24,null,"女",null,"従妹",null,null,null,null,null,null,null,null,0,null,null,"加工・宿泊・レストラン",null,null,null,null,null,1900]
[null,"倉敷　定子",null,null,null,null,24,null,"女",null,"従妹",null,null,null,null,null,null,null,null,0,null,null,"加工・宿泊・レストラン",null,null,null,null,null,1900,null,null,"倉敷　定子",null,null,null,null,24,null,"女",null,"従妹",null,null,null,null,null,null,null,null,0,null,null,"加工・宿泊・レストラン",null,null,null,null,null,1900]
[null,"倉敷　定子",null,null,null,null,24,null,"女",null,"従妹",null,null,null,null,null,null,null,null,0,null,null,"加工・宿泊・レストラン",null,null,null,null,null,1900,null,null,"倉敷　定子",null,null,null,null,24,null,"女",null,"従妹",null,null,null,null,null,null,null,null,0,null,null,"加工・宿泊・レストラン",null,null,null,null,null,1900]
[null,"倉敷　定子",null,null,null,null,24,null,"女",null,"従妹",null,null,null,null,null,null,null,null,0,null,null,"加工・宿泊・レストラン",null,null,null,null,null,1900,null,null,"倉敷　定子",null,null,null,null,24,null,"女",null,"従妹",null,null,null,null,null,null,null,null,0,null,null,"加工・宿泊・レストラン",null,null,null,null,null,1900]
[null,"倉敷　定子",null,null,null,null,24,null,"女",null,"従妹",null,null,null,null,null,null,null,null,0,null,null,"加工・宿泊・レストラン",null,null,null,null,null,1900,null,null,"倉敷　定子",null,null,null,null,24,null,"女",null,"従妹",null,null,null,null,null,null,null,null,0,null,null,"加工・宿泊・レストラン",null,null,null,null,null,1900]
[null,"倉敷　定子",null,null,null,null,24,null,"女",null,"従妹",null,null,null,null,null,null,null,null,0,null,null,"加工・宿泊・レストラン",null,null,null,null,null,1900,null,null,"倉敷　定子",null,null,null,null,24,null,"女",null,"従妹",null,null,null,null,null,null,null,null,0,null,null,"加工・宿泊・レストラン",null,null,null,null,null,1900]
[null,"倉敷　定子",null,null,null,null,24,null,"女",null,"従妹",null,null,null,null,null,null,null,null,0,null,null,"加工・宿泊・レストラン",null,null,null,null,null,1900,null,null,"倉敷　定子",null,null,null,null,24,null,"女",null,"従妹",null,null,null,null,null,null,null,null,0,null,null,"加工・宿泊・レストラン",null,null,null,null,null,1900]
[null,"倉敷　定子",null,null,null,null,24,null,"女",null,"従妹",null,null,null,null,null,null,null,null,0,null,null,"加工・宿泊・レストラン",null,null,null,null,null,1900,null,null,"倉敷　定子",null,null,null,null,24,null,"女",null,"従妹",null,null,null,null,null,null,null,null,0,null,null,"加工・宿泊・レストラン",null,null,null,null,null,1900]
[null,"倉敷　定子",null,null,null,null,24,null,"女",null,"従妹",null,null,null,null,null,null,null,null,0,null,null,"加工・宿泊・レストラン",null,null,null,null,null,1900,null,null,"倉敷　定子",null,null,null,null,24,null,"女",null,"従妹",null,null,null,null,null,null,null,null,0,null,null,"加工・宿泊・レストラン",null,null,null,null,null,1900]
[null,"倉敷　定子",null,null,null,null,24,null,"女",null,"従妹",null,null,null,null,null,null,null,null,0,null,null,"加工・宿泊・レストラン",null,null,null,null,null,1900,null,null,"倉敷　定子",null,null,null,null,24,null,"女",null,"従妹",null,null,null,null,null,null,null,null,0,null,null,"加工・宿泊・レストラン",null,null,null,null,null,1900]
[null,"倉敷　定子",null,null,null,null,24,null,"女",null,"従妹",null,null,null,null,null,null,null,null,0,null,null,"加工・宿泊・レストラン",null,null,null,null,null,1900,null,null,"倉敷　定子",null,null,null,null,24,null,"女",null,"従妹",null,null,null,null,null,null,null,null,0,null,null,"加工・宿泊・レストラン",null,null,null,null,null,1900]
[null,"倉敷　定子",null,null,null,null,24,null,"女",null,"従妹",null,null,null,null,null,null,null,null,0,null,null,"加工・宿泊・レストラン",null,null,null,null,null,1900,null,null,"倉敷　定子",null,null,null,null,24,null,"女",null,"従妹",null,null,null,null,null,null,null,null,0,null,null,"加工・宿泊・レストラン",null,null,null,null,null,1900]
[null,"倉敷　定子",null,null,null,null,24,null,"女",null,"従妹",null,null,null,null,null,null,null,null,0,null,null,"加工・宿泊・レストラン",null,null,null,null,null,1900,null,null,"倉敷　定子",null,null,null,null,24,null,"女",null,"従妹",null,null,null,null,null,null,null,null,0,null,null,"加工・宿泊・レストラン",null,null,null,null,null,1900]
[null,"倉敷　定子",null,null,null,null,24,null,"女",null,"従妹",null,null,null,null,null,null,null,null,0,null,null,"加工・宿泊・レストラン",null,null,null,null,null,1900,null,null,"倉敷　定子",null,null,null,null,24,null,"女",null,"従妹",null,null,null,null,null,null,null,null,0,null,null,"加工・宿泊・レストラン",null,null,null,null,null,1900]
[null,"倉敷　定子",null,null,null,null,24,null,"女",null,"従妹",null,null,null,null,null,null,null,null,0,null,null,"加工・宿泊・レストラン",null,null,null,null,null,1900,null,null,"倉敷　定子",null,null,null,null,24,null,"女",null,"従妹",null,null,null,null,null,null,null,null,0,null,null,"加工・宿泊・レストラン",null,null,null,null,null,1900]
[]
[null,"（別紙）生産方式の合理化に係る農業用機械等の取得計画"]
[null,"農業用機械等の名称",null,null,null,null,null,null,null,null,null,null,null,null,null,null,null,"現状",null,null,null,null,null,null,"目標",null,null,null,null,null,null,"農業用機械等の名称",null,null,null,null,null,null,null,null,null,null,null,null,null,null,null,"現状",null,null,null,null,null,null,"目標"]
[null,{"$f":"IF(B166=\"\",\"\",B166)","v":"トラクター20ps"},null,null,null,null,null,null,null,null,null,null,null,null,null,null,null,{"$f":"IF(R166=\"\",\"\",R166)","v":"１台"},null,null,null,null,null,null,{"$f":"IF(Y166=\"\",\"\",Y166)","v":"２台"},null,null,null,null,null,null,"フォークリフト1t",null,null,null,null,null,null,null,null,null,null,null,null,null,null,null,"１台",null,null,null,null,null,null,"１台"]
[null,"トラクター30ps",null,null,null,null,null,null,null,null,null,null,null,null,null,null,null,"１台",null,null,null,null,null,null,"２台",null,null,null,null,null,null,"フォークリフト1t",null,null,null,null,null,null,null,null,null,null,null,null,null,null,null,"１台",null,null,null,null,null,null,"１台"]
[null,"トラクター40ps",null,null,null,null,null,null,null,null,null,null,null,null,null,null,null,"１台",null,null,null,null,null,null,"１台",null,null,null,null,null,null,"フォークリフト1t",null,null,null,null,null,null,null,null,null,null,null,null,null,null,null,"１台",null,null,null,null,null,null,"１台"]
[null,"トラクター60psセミクローラー",null,null,null,null,null,null,null,null,null,null,null,null,null,null,null,"１台",null,null,null,null,null,null,"１台",null,null,null,null,null,null,"フォークリフト1t",null,null,null,null,null,null,null,null,null,null,null,null,null,null,null,"１台",null,null,null,null,null,null,"１台"]
[null,"トラクター80psクローラー",null,null,null,null,null,null,null,null,null,null,null,null,null,null,null,"１台",null,null,null,null,null,null,"１台",null,null,null,null,null,null,"フォークリフト1t",null,null,null,null,null,null,null,null,null,null,null,null,null,null,null,"１台",null,null,null,null,null,null,"１台"]
[null,"トラクター100psクローラー",null,null,null,null,null,null,null,null,null,null,null,null,null,null,null,"無し",null,null,null,null,null,null,"１台",null,null,null,null,null,null,"フォークリフト1t",null,null,null,null,null,null,null,null,null,null,null,null,null,null,null,"１台",null,null,null,null,null,null,"１台"]
[null,"田植機４条",null,null,null,null,null,null,null,null,null,null,null,null,null,null,null,"１台",null,null,null,null,null,null,"無し",null,null,null,null,null,null,"フォークリフト1t",null,null,null,null,null,null,null,null,null,null,null,null,null,null,null,"１台",null,null,null,null,null,null,"１台"]
[null,"田植機６条",null,null,null,null,null,null,null,null,null,null,null,null,null,null,null,"１台",null,null,null,null,null,null,"１台",null,null,null,null,null,null,"フォークリフト1t",null,null,null,null,null,null,null,null,null,null,null,null,null,null,null,"１台",null,null,null,null,null,null,"１台"]
[null,"田植機８条",null,null,null,null,null,null,null,null,null,null,null,null,null,null,null,"無し",null,null,null,null,null,null,"１台",null,null,null,null,null,null,"フォークリフト1t",null,null,null,null,null,null,null,null,null,null,null,null,null,null,null,"１台",null,null,null,null,null,null,"１台"]
[null,"コンバイン４条",null,null,null,null,null,null,null,null,null,null,null,null,null,null,null,"１台",null,null,null,null,null,null,"無し",null,null,null,null,null,null,"フォークリフト1t",null,null,null,null,null,null,null,null,null,null,null,null,null,null,null,"１台",null,null,null,null,null,null,"１台"]
[null,"コンバイン５条",null,null,null,null,null,null,null,null,null,null,null,null,null,null,null,"１台",null,null,null,null,null,null,"１台",null,null,null,null,null,null,"フォークリフト1t",null,null,null,null,null,null,null,null,null,null,null,null,null,null,null,"１台",null,null,null,null,null,null,"１台"]
[null,"コンバイン６条",null,null,null,null,null,null,null,null,null,null,null,null,null,null,null,"無し",null,null,null,null,null,null,"１台",null,null,null,null,null,null,"フォークリフト1t",null,null,null,null,null,null,null,null,null,null,null,null,null,null,null,"１台",null,null,null,null,null,null,"１台"]
[null,"乗用管理機20ps",null,null,null,null,null,null,null,null,null,null,null,null,null,null,null,"１台",null,null,null,null,null,null,"１台",null,null,null,null,null,null,"フォークリフト1t",null,null,null,null,null,null,null,null,null,null,null,null,null,null,null,"１台",null,null,null,null,null,null,"１台"]
[null,"動力散布機",null,null,null,null,null,null,null,null,null,null,null,null,null,null,null,"２台",null,null,null,null,null,null,"無し",null,null,null,null,null,null,"フォークリフト1t",null,null,null,null,null,null,null,null,null,null,null,null,null,null,null,"１台",null,null,null,null,null,null,"１台"]
[null,"防除用ドローン",null,null,null,null,null,null,null,null,null,null,null,null,null,null,null,"無し",null,null,null,null,null,null,"２台",null,null,null,null,null,null,"フォークリフト1t",null,null,null,null,null,null,null,null,null,null,null,null,null,null,null,"１台",null,null,null,null,null,null,"１台"]
[null,{"$f":"IF(AF166=\"\",\"\",AF166)","v":"スピードスプレーヤー600L"},null,null,null,null,null,null,null,null,null,null,null,null,null,null,null,{"$f":"IF(AV166=\"\",\"\",AV166)","v":"無し"},null,null,null,null,null,null,{"$f":"IF(BC166=\"\",\"\",BC166)","v":"１台"},null,null,null,null,null,null,"フォークリフト1t",null,null,null,null,null,null,null,null,null,null,null,null,null,null,null,"１台",null,null,null,null,null,null,"１台"]
[null,"マニュアスプレッダー牽引式",null,null,null,null,null,null,null,null,null,null,null,null,null,null,null,"無し",null,null,null,null,null,null,"１台",null,null,null,null,null,null,"フォークリフト1t",null,null,null,null,null,null,null,null,null,null,null,null,null,null,null,"１台",null,null,null,null,null,null,"１台"]
[null,"管理機6ps",null,null,null,null,null,null,null,null,null,null,null,null,null,null,null,"１台",null,null,null,null,null,null,"３台",null,null,null,null,null,null,"フォークリフト1t",null,null,null,null,null,null,null,null,null,null,null,null,null,null,null,"１台",null,null,null,null,null,null,"１台"]
[null,"運搬車",null,null,null,null,null,null,null,null,null,null,null,null,null,null,null,"無し",null,null,null,null,null,null,"４台",null,null,null,null,null,null,"フォークリフト1t",null,null,null,null,null,null,null,null,null,null,null,null,null,null,null,"１台",null,null,null,null,null,null,"１台"]
[null,"乾燥調製施設",null,null,null,null,null,null,null,null,null,null,null,null,null,null,null,"1,500俵",null,null,null,null,null,null,"2,000俵",null,null,null,null,null,null,"フォークリフト1t",null,null,null,null,null,null,null,null,null,null,null,null,null,null,null,"１台",null,null,null,null,null,null,"１台"]
[null,"色彩選別機",null,null,null,null,null,null,null,null,null,null,null,null,null,null,null,"無し",null,null,null,null,null,null,"１台",null,null,null,null,null,null,"フォークリフト1t",null,null,null,null,null,null,null,null,null,null,null,null,null,null,null,"１台",null,null,null,null,null,null,"１台"]
[null,"飼料給餌車（肉用牛）",null,null,null,null,null,null,null,null,null,null,null,null,null,null,null,"無し",null,null,null,null,null,null,"１台",null,null,null,null,null,null,"フォークリフト1t",null,null,null,null,null,null,null,null,null,null,null,null,null,null,null,"１台",null,null,null,null,null,null,"１台"]
[null,"自動給餌機（肉用牛）",null,null,null,null,null,null,null,null,null,null,null,null,null,null,null,"無し",null,null,null,null,null,null,"１台",null,null,null,null,null,null,"フォークリフト1t",null,null,null,null,null,null,null,null,null,null,null,null,null,null,null,"１台",null,null,null,null,null,null,"１台"]
[null,"自動給餌機（豚）",null,null,null,null,null,null,null,null,null,null,null,null,null,null,null,"無し",null,null,null,null,null,null,"１台",null,null,null,null,null,null,"フォークリフト1t",null,null,null,null,null,null,null,null,null,null,null,null,null,null,null,"１台",null,null,null,null,null,null,"１台"]
[null,"自動給餌機（鶏）",null,null,null,null,null,null,null,null,null,null,null,null,null,null,null,"無し",null,null,null,null,null,null,"４台",null,null,null,null,null,null,"フォークリフト1t",null,null,null,null,null,null,null,null,null,null,null,null,null,null,null,"１台",null,null,null,null,null,null,"１台"]
[null,"ホイールローダー",null,null,null,null,null,null,null,null,null,null,null,null,null,null,null,"無し",null,null,null,null,null,null,"１台",null,null,null,null,null,null,"フォークリフト1t",null,null,null,null,null,null,null,null,null,null,null,null,null,null,null,"１台",null,null,null,null,null,null,"１台"]
[null,"バックホー",null,null,null,null,null,null,null,null,null,null,null,null,null,null,null,"無し",null,null,null,null,null,null,"１台",null,null,null,null,null,null,"フォークリフト1t",null,null,null,null,null,null,null,null,null,null,null,null,null,null,null,"１台",null,null,null,null,null,null,"１台"]
[null,"乗用草刈機",null,null,null,null,null,null,null,null,null,null,null,null,null,null,null,"１台",null,null,null,null,null,null,"２台",null,null,null,null,null,null,"フォークリフト1t",null,null,null,null,null,null,null,null,null,null,null,null,null,null,null,"１台",null,null,null,null,null,null,"１台"]
[null,"トラック2t",null,null,null,null,null,null,null,null,null,null,null,null,null,null,null,"無し",null,null,null,null,null,null,"１台",null,null,null,null,null,null,"フォークリフト1t",null,null,null,null,null,null,null,null,null,null,null,null,null,null,null,"１台",null,null,null,null,null,null,"１台"]
[null,"軽四トラック",null,null,null,null,null,null,null,null,null,null,null,null,null,null,null,"１台",null,null,null,null,null,null,"２台",null,null,null,null,null,null,"フォークリフト1t",null,null,null,null,null,null,null,null,null,null,null,null,null,null,null,"１台",null,null,null,null,null,null,"１台"]

{"sheet":"03リスト","index":2,"n_rows":38,"n_cols":19,"rows_kept":38,"cut":false,"hidden":false,"merged":[]}
[]
[null,"セル"]
[null,"項目","市町村","所得基準","営農類型","営農類型",null,null,"女性","共同申請","個人から法人","法人形態","組織経営体","特定農業法人","認定種類","地目","性別","主たる従事者","制度資金利用の有無"]
[null,null,null,null,null,"単一","準単一","複合"]
[null,"リスト"]
[null,null,"農林水産省","従事者１人","単一","稲作","稲作＋麦類作","複合","〇","夫婦","〇","株式会社","〇","〇","新規","田","男","○","有"]
[null,null,"中国四国農政局","１経営体","準単一","麦類作","稲作＋雑穀・いも類・豆類",null,null,"親子",null,"有限会社",null,null,"再認定","畑","女",null,"無"]
[null,null,"岡山県",null,"複合","雑穀・いも類・豆類","稲作＋工芸農作物",null,null,"その他",null,"農事組合法人",null,null,"変更","樹園地"]
[null,null,"岡山県備前県民局",null,null,"工芸農作物","稲作＋露地野菜",null,null,null,null,"合同会社",null,null,null,"採草放牧地"]
[null,null,"岡山県備中県民局",null,null,"露地野菜","稲作＋施設野菜",null,null,null,null,"その他",null,null,null,"山林"]
[null,null,"岡山県美作県民局",null,null,"施設野菜","稲作＋果樹類",null,null,null,null,null,null,null,null,"原野"]
[null,null,"岡山市",null,null,"果樹類","稲作＋花き・花木",null,null,null,null,null,null,null,null,"雑種地"]
[null,null,"倉敷市",null,null,"花き・花木","稲作＋その他の作物",null,null,null,null,null,null,null,null,"その他"]
[null,null,"津山市",null,null,"その他の作物","稲作＋酪農"]
[null,null,"玉野市",null,null,"酪農","稲作＋肉用牛"]
[null,null,"笠岡市",null,null,"肉用牛","稲作＋養豚"]
[null,null,"井原市",null,null,"養豚","稲作＋養鶏"]
[null,null,"総社市",null,null,"養鶏","稲作＋その他の畜産"]
[null,null,"高梁市",null,null,"その他の畜産","露地野菜 ＋ その他"]
[null,null,"新見市",null,null,null,"施設野菜 ＋ その他"]
[null,null,"備前市",null,null,null,"果樹類 ＋ その他"]
[null,null,"瀬戸内市",null,null,null,"花き・花木 ＋ その他"]
[null,null,"赤磐市",null,null,null,"酪農 ＋ その他"]
[null,null,"真庭市",null,null,null,"肉用牛 ＋ その他"]
[null,null,"美作市",null,null,null,"養豚 ＋ その他"]
[null,null,"浅口市",null,null,null,"養鶏 ＋ その他"]
[null,null,"和気町",null,null,null,"その他の畜産 ＋ その他"]
[null,null,"早島町",null,null,null,"その他"]
[null,null,"里庄町"]
[null,null,"矢掛町"]
[null,null,"新庄村"]
[null,null,"鏡野町"]
[null,null,"勝央町"]
[null,null,"奈義町"]
[null,null,"西粟倉村"]
[null,null,"久米南町"]
[null,null,"美咲町"]
[null,null,"吉備中央町"]